Workbook

Sheet CF Setup
A1: CASH FLOW WORKSHEET V3.4 | E1: Release Notes | F1: Downlaod Current Version | H1: Need Help? | N1: 1
N2: 2
N3: 3
B4: Title 1 | C4: Fox Office Building 103 | N4: 4
B5: Title 2 | C5: Prepared by ?? | N5: 5
B6: Title 3 | C6: Cash Flow Report | N6: 6
N7: 7
B8: Show Details: | C8: Graph: | D8: TRUE | E8: Actuals Data: | F8: TRUE | G8: Curve Data: | H8: TRUE | N8: 8
N9: 9
B10: Number of Phases | C10: 2 | N10: 10
N11: 11
B12: Retention % | C12: 0.1 | N12: 12
N13: 13
B14: Monthly Billing Day | C14: 25 | N14: 14
B15: i.e. 25th of the month | N15: 15
N16: 16
B17: Payment Due (Days) | C17: 30 | N17: 17
B18: Amount of days after the Billing Date. | N18: 18
N19: 19
B20: Tolerance (20 is recommended) | C20: 0 | N20: 20
N21: 21
B22: HB Release (e.g. 45 days) | C22: 60 | N22: 22
B23: HB Released by Phase | C23: Yes | D23: (If HB Released by Phase is left blank, default is No) | N23: 23
B24: Phase | C24: 1 | D24: 2 | E24: 3 | F24: 4 | G24: 5 | H24: 6 | I24: 7 | J24: 8 | K24: 9 | L24: 10 | N24: 24
B25: Contract (Phase) Value | C25: 233566 | D25: 47081460 | N25: 25
B26: Start Date (MM/DD/YYYY) | C26: 2009-02-12 | D26: 2009-09-12 | N26: 26
B27: Completion Date | C27: 2009-09-12 | D27: 2011-04-12 | N27: 27
B28: Initial Billing per S-Curve | C28: =IF(C25>0,IF(C26>0,IF(C27<>"",MIN(CValue1,113.951*(0.005457^(0.963807^MIN((DATE(YEAR([0]!StartDate1),MONTH([0]!StartDate1)+IF(DAY([0]!StartDate1)<BillingDay,0,1),BillingDay)-StartDate1)/(CompleteDate1-StartDate1)*100,100)))*CValue1/100),""),""),"") -> 4168.239682 | D28: =IF(D25>0,IF(D26>0,IF(D27<>"",MIN(CValue2,113.951*(0.005457^(0.963807^MIN((DATE(YEAR([0]!StartDate2),MONTH([0]!StartDate2)+IF(DAY([0]!StartDate2)<BillingDay,0,1),BillingDay)-StartDate2)/(CompleteDate2-StartDate2)*100,100)))*CValue2/100),""),""),"") -> 443494.5233 | E28: =IF(E25>0,IF(E26>0,IF(E27<>"",MIN(CValue3,113.951*(0.005457^(0.963807^MIN((DATE(YEAR([0]!StartDate3),MONTH([0]!StartDate3)+IF(DAY([0]!StartDate3)<BillingDay,0,1),BillingDay)-StartDate3)/(CompleteDate3-StartDate3)*100,100)))*CValue3/100),""),""),"") ->  | F28: =IF(F25>0,IF(F26>0,IF(F27<>"",MIN(CValue4,113.951*(0.005457^(0.963807^MIN((DATE(YEAR([0]!StartDate4),MONTH([0]!StartDate4)+IF(DAY([0]!StartDate4)<BillingDay,0,1),BillingDay)-StartDate4)/(CompleteDate4-StartDate4)*100,100)))*CValue4/100),""),""),"") ->  | G28: =IF(G25>0,IF(G26>0,IF(G27<>"",MIN(CValue5,113.951*(0.005457^(0.963807^MIN((DATE(YEAR([0]!StartDate5),MONTH([0]!StartDate5)+IF(DAY([0]!StartDate5)<BillingDay,0,1),BillingDay)-StartDate5)/(CompleteDate5-StartDate5)*100,100)))*CValue5/100),""),""),"") ->  | H28: =IF(H25>0,IF(H26>0,IF(H27<>"",MIN(CValue6,113.951*(0.005457^(0.963807^MIN((DATE(YEAR([0]!StartDate6),MONTH([0]!StartDate6)+IF(DAY([0]!StartDate6)<BillingDay,0,1),BillingDay)-StartDate6)/(CompleteDate6-StartDate6)*100,100)))*CValue6/100),""),""),"") ->  | I28: =IF(I25>0,IF(I26>0,IF(I27<>"",MIN(CValue7,113.951*(0.005457^(0.963807^MIN((DATE(YEAR([0]!StartDate7),MONTH([0]!StartDate7)+IF(DAY([0]!StartDate7)<BillingDay,0,1),BillingDay)-StartDate7)/(CompleteDate7-StartDate7)*100,100)))*CValue7/100),""),""),"") ->  | J28: =IF(J25>0,IF(J26>0,IF(J27<>"",MIN(CValue8,113.951*(0.005457^(0.963807^MIN((DATE(YEAR([0]!StartDate8),MONTH([0]!StartDate8)+IF(DAY([0]!StartDate8)<BillingDay,0,1),BillingDay)-StartDate8)/(CompleteDate8-StartDate8)*100,100)))*CValue8/100),""),""),"") ->  | K28: =IF(K25>0,IF(K26>0,IF(K27<>"",MIN(CValue9,113.951*(0.005457^(0.963807^MIN((DATE(YEAR([0]!StartDate9),MONTH([0]!StartDate9)+IF(DAY([0]!StartDate9)<BillingDay,0,1),BillingDay)-StartDate9)/(CompleteDate9-StartDate9)*100,100)))*CValue9/100),""),""),"") ->  | L28: =IF(L25>0,IF(L26>0,IF(L27<>"",MIN(CValue10,113.951*(0.005457^(0.963807^MIN((DATE(YEAR([0]!StartDate10),MONTH([0]!StartDate10)+IF(DAY([0]!StartDate10)<BillingDay,0,1),BillingDay)-StartDate10)/(CompleteDate10-StartDate10)*100,100)))*CValue10/100),""),""),"") ->  | N28: 28
B29: Initial Billing Override | C29: 0 | D29: 0 | E29: 0 | F29: 0 | G29: 0 | H29: 0 | I29: 0 | J29: 0 | K29: 0 | L29: 0 | N29: 0
B30: HB Release Date | C30: =IF(HBByPhase="Yes",DATE(YEAR(C27+HBRelease),MONTH(C27+HBRelease)+IF(DAY(C27+HBRelease)<BillingDay,0,1),BillingDay),DATE(YEAR(MAX($C$27:$L$27)+HBRelease),MONTH(MAX($C$27:$L$27)+HBRelease)+IF(DAY(MAX($C$27:$L$27)+HBRelease)<BillingDay,0,1),BillingDay)) -> 2009-11-25 | D30: =IF(PhaseNo>=2,IF(HBByPhase="Yes",DATE(YEAR(D27+HBRelease),MONTH(D27+HBRelease)+IF(DAY(D27+HBRelease)<BillingDay,0,1),BillingDay),""),"") -> 2011-06-25 | E30: =IF(PhaseNo>=3,IF(HBByPhase="Yes",DATE(YEAR(E27+HBRelease),MONTH(E27+HBRelease)+IF(DAY(E27+HBRelease)<BillingDay,0,1),BillingDay),""),"") ->  | F30: =IF(PhaseNo>=4,IF(HBByPhase="Yes",DATE(YEAR(F27+HBRelease),MONTH(F27+HBRelease)+IF(DAY(F27+HBRelease)<BillingDay,0,1),BillingDay),""),"") ->  | G30: =IF(PhaseNo>=5,IF(HBByPhase="Yes",DATE(YEAR(G27+HBRelease),MONTH(G27+HBRelease)+IF(DAY(G27+HBRelease)<BillingDay,0,1),BillingDay),""),"") ->  | H30: =IF(PhaseNo>=6,IF(HBByPhase="Yes",DATE(YEAR(H27+HBRelease),MONTH(H27+HBRelease)+IF(DAY(H27+HBRelease)<BillingDay,0,1),BillingDay),""),"") ->  | I30: =IF(PhaseNo>=7,IF(HBByPhase="Yes",DATE(YEAR(I27+HBRelease),MONTH(I27+HBRelease)+IF(DAY(I27+HBRelease)<BillingDay,0,1),BillingDay),""),"") ->  | J30: =IF(PhaseNo>=8,IF(HBByPhase="Yes",DATE(YEAR(J27+HBRelease),MONTH(J27+HBRelease)+IF(DAY(J27+HBRelease)<BillingDay,0,1),BillingDay),""),"") ->  | K30: =IF(PhaseNo>=9,IF(HBByPhase="Yes",DATE(YEAR(K27+HBRelease),MONTH(K27+HBRelease)+IF(DAY(K27+HBRelease)<BillingDay,0,1),BillingDay),""),"") ->  | L30: =IF(PhaseNo>=10,IF(HBByPhase="Yes",DATE(YEAR(L27+HBRelease),MONTH(L27+HBRelease)+IF(DAY(L27+HBRelease)<BillingDay,0,1),BillingDay),""),"") -> 
B31: =" ("&HBRelease&" days after "&IF(HBByPhase="Yes","each phase and adjusted to the next billing day)","project completion and adjusted to the next billing day)") -> (60 days after each phase and adjusted to the next billing day)
B32: Program Modifications
B33: Version V2.01 Release Notes
B34: Version V2.10 Release Notes
B35: Version V2.11 Release Notes
B36: Version V2.12 Release Notes
B37: Version V2.13 Release Notes
B38: Version V3.0 Release Notes
B39: Version V3.1 Release Notes
B40: Version V3.2 Release Notes
B41: Version V3.3 Release Notes
B42: Version V3.4 Release Notes

Sheet Summary
A2: ='CF Setup'!C4&" - Summary" -> Fox Office Building 103 - Summary
A3: ='CF Setup'!C5 -> Prepared by ??
A4: ='CF Setup'!C6 -> Cash Flow Report
A8: ="Total Project Period: "&(TEXT(MIN(StartRange),"mmmm d, yyyy")&" To "&TEXT(MAX(CompleteRange),"mmmm d, yyyy")) -> Total Project Period: February 12, 2009 To April 12, 2011 | O8: ="Total Project Value: "&TEXT(SUM(CVRange),"$0,0") -> Total Project Value: $47,315,026
C10: This Period | F10: Cumulative | J10: Late Curve | L10: Early Curve | N10: Actual Billing | P10: Expected Payment
A11: Draw Date | B11: Duration% | C11: Gross Billing | D11: Retention | E11: Net Billing | F11: Gross Billing | G11: Retention | H11: Net Billing | I11: SpreadFactor | J11: Monthly | K11: Cumulative | L11: Monthly | M11: Cumulative | N11: Monthly | O11: Cumulative | P11: Date | Q11: Monthly | R11: Cummalative
A12: =MIN('Phase 1'!A12,'Phase 2'!A12,'Phase 3'!A12,'Phase 4'!A12,'Phase 5'!A12,'Phase 6'!A12,'Phase 7'!A12,'Phase 8'!A12,'Phase 9'!A12,'Phase 10'!A12) -> 2009-02-25 | B12: =MIN((A12-MIN(StartRange))/(MAX(CompleteRange)-MIN(StartRange))*100,100) -> 1.64765526 | C12: =IF(B12<=100,IF(ISNA(VLOOKUP(A12,Phase1Data,3,FALSE))=TRUE,0,VLOOKUP(A12,Phase1Data,3,FALSE))+IF(ISNA(VLOOKUP(A12,Phase2Data,3,FALSE))=TRUE,0,VLOOKUP(A12,Phase2Data,3,FALSE))+IF(ISNA(VLOOKUP(A12,Phase3Data,3,FALSE))=TRUE,0,VLOOKUP(A12,Phase3Data,3,FALSE))+IF(ISNA(VLOOKUP(A12,Phase4Data,3,FALSE))=TRUE,0,VLOOKUP(A12,Phase4Data,3,FALSE))+IF(ISNA(VLOOKUP(A12,Phase5Data,3,FALSE))=TRUE,0,VLOOKUP(A12,Phase5Data,3,FALSE))+IF(ISNA(VLOOKUP(A12,Phase6Data,3,FALSE))=TRUE,0,VLOOKUP(A12,Phase6Data,3,FALSE))+IF(ISNA(VLOOKUP(A12,Phase7Data,3,FALSE))=TRUE,0,VLOOKUP(A12,Phase7Data,3,FALSE))+IF(ISNA(VLOOKUP(A12,Phase8Data,3,FALSE))=TRUE,0,VLOOKUP(A12,Phase8Data,3,FALSE))+IF(ISNA(VLOOKUP(A12,Phase9Data,3,FALSE))=TRUE,0,VLOOKUP(A12,Phase9Data,3,FALSE))+IF(ISNA(VLOOKUP(A12,Phase10Data,3,FALSE))=TRUE,0,VLOOKUP(A12,Phase10Data,3,FALSE)),"") -> 4168.239682 | D12: =IF(B12<=100,IF(ISNA(VLOOKUP(A12,Phase1Data,4,FALSE))=TRUE,0,VLOOKUP(A12,Phase1Data,4,FALSE))+IF(ISNA(VLOOKUP(A12,Phase2Data,4,FALSE))=TRUE,0,VLOOKUP(A12,Phase2Data,4,FALSE))+IF(ISNA(VLOOKUP(A12,Phase3Data,4,FALSE))=TRUE,0,VLOOKUP(A12,Phase3Data,4,FALSE))+IF(ISNA(VLOOKUP(A12,Phase4Data,4,FALSE))=TRUE,0,VLOOKUP(A12,Phase4Data,4,FALSE))+IF(ISNA(VLOOKUP(A12,Phase5Data,4,FALSE))=TRUE,0,VLOOKUP(A12,Phase5Data,4,FALSE))+IF(ISNA(VLOOKUP(A12,Phase6Data,4,FALSE))=TRUE,0,VLOOKUP(A12,Phase6Data,4,FALSE))+IF(ISNA(VLOOKUP(A12,Phase7Data,4,FALSE))=TRUE,0,VLOOKUP(A12,Phase7Data,4,FALSE))+IF(ISNA(VLOOKUP(A12,Phase8Data,4,FALSE))=TRUE,0,VLOOKUP(A12,Phase8Data,4,FALSE))+IF(ISNA(VLOOKUP(A12,Phase9Data,4,FALSE))=TRUE,0,VLOOKUP(A12,Phase9Data,4,FALSE))+IF(ISNA(VLOOKUP(A12,Phase10Data,4,FALSE))=TRUE,0,VLOOKUP(A12,Phase10Data,4,FALSE)),"") -> 416.8239682 | E12: =IF(B12<=100,C12-D12,"") -> 3751.415714 | F12: =C12 -> 4168.239682 | G12: =D12 -> 416.8239682 | H12: =F12-G12 -> 3751.415714 | I12: =IF(B12<=100,IF(ISNA(VLOOKUP(A12,Phase1Data,11,FALSE))=TRUE,0,VLOOKUP(A12,Phase1Data,11,FALSE))+IF(ISNA(VLOOKUP(A12,Phase2Data,11,FALSE))=TRUE,0,VLOOKUP(A12,Phase2Data,11,FALSE))+IF(ISNA(VLOOKUP(A12,Phase3Data,11,FALSE))=TRUE,0,VLOOKUP(A12,Phase3Data,11,FALSE))+IF(ISNA(VLOOKUP(A12,Phase4Data,11,FALSE))=TRUE,0,VLOOKUP(A12,Phase4Data,11,FALSE))+IF(ISNA(VLOOKUP(A12,Phase5Data,11,FALSE))=TRUE,0,VLOOKUP(A12,Phase5Data,11,FALSE))+IF(ISNA(VLOOKUP(A12,Phase6Data,11,FALSE))=TRUE,0,VLOOKUP(A12,Phase6Data,11,FALSE))+IF(ISNA(VLOOKUP(A12,Phase7Data,11,FALSE))=TRUE,0,VLOOKUP(A12,Phase7Data,11,FALSE))+IF(ISNA(VLOOKUP(A12,Phase8Data,11,FALSE))=TRUE,0,VLOOKUP(A12,Phase8Data,11,FALSE))+IF(ISNA(VLOOKUP(A12,Phase9Data,11,FALSE))=TRUE,0,VLOOKUP(A12,Phase9Data,11,FALSE))+IF(ISNA(VLOOKUP(A12,Phase10Data,11,FALSE))=TRUE,0,VLOOKUP(A12,Phase10Data,11,FALSE)),"") -> 0 | J12: =K12 -> 3751.415714 | K12: =IF(H12-I12>0,H12-I12,0) -> 3751.415714 | L12: =M12 -> 3751.415714 | M12: =IF(B12<=100,H12+I12,"") -> 3751.415714 | N12: =IF(B12<=100,IF(ISNA(VLOOKUP(A12,Phase1Data,16,FALSE))=TRUE,0,VLOOKUP(A12,Phase1Data,16,FALSE))+IF(ISNA(VLOOKUP(A12,Phase2Data,16,FALSE))=TRUE,0,VLOOKUP(A12,Phase2Data,16,FALSE))+IF(ISNA(VLOOKUP(A12,Phase3Data,16,FALSE))=TRUE,0,VLOOKUP(A12,Phase3Data,16,FALSE))+IF(ISNA(VLOOKUP(A12,Phase4Data,16,FALSE))=TRUE,0,VLOOKUP(A12,Phase4Data,16,FALSE))+IF(ISNA(VLOOKUP(A12,Phase5Data,16,FALSE))=TRUE,0,VLOOKUP(A12,Phase5Data,16,FALSE))+IF(ISNA(VLOOKUP(A12,Phase6Data,16,FALSE))=TRUE,0,VLOOKUP(A12,Phase6Data,16,FALSE))+IF(ISNA(VLOOKUP(A12,Phase7Data,16,FALSE))=TRUE,0,VLOOKUP(A12,Phase7Data,16,FALSE))+IF(ISNA(VLOOKUP(A12,Phase8Data,16,FALSE))=TRUE,0,VLOOKUP(A12,Phase8Data,16,FALSE))+IF(ISNA(VLOOKUP(A12,Phase9Data,16,FALSE))=TRUE,0,VLOOKUP(A12,Phase9Data,16,FALSE))+IF(ISNA(VLOOKUP(A12,Phase10Data,16,FALSE))=TRUE,0,VLOOKUP(A12,Phase10Data,16,FALSE)),"") -> 0 | O12: =IF(N12>0,N12,0) -> 0 | P12: =IF(ISBLANK(A12), , A12+ PaymentDate) -> 2009-03-27 | Q12: =IF(ISBLANK(N12), , N12) -> 0 | R12: =IF(O12=0, 0, O12) -> 0
A13: =IF(A12 = "", "", IF(BillingDay<>0, IF(B12<100,DATE(YEAR(A12),MONTH(A12)+1,DAY(A12)),IF(B12=100,MAX(HBReleaseRange),"")), IF(B12<100,(DATE(YEAR(A12),MONTH(A12)+2,1)-1),IF(B12=100,MAX(HBReleaseRange),"")))) -> 2009-03-25 | B13: =IF(B12<100,MIN((A13-MIN(StartRange))/(MAX(CompleteRange)-MIN(StartRange))*100,100),IF(B12=100,IF(A13<>"","HB Release",""),"")) -> 5.196451204 | C13: =IF(B13<=100,IF(ISNA(VLOOKUP(A13,Phase1Data,3,FALSE))=TRUE,0,VLOOKUP(A13,Phase1Data,3,FALSE))+IF(ISNA(VLOOKUP(A13,Phase2Data,3,FALSE))=TRUE,0,VLOOKUP(A13,Phase2Data,3,FALSE))+IF(ISNA(VLOOKUP(A13,Phase3Data,3,FALSE))=TRUE,0,VLOOKUP(A13,Phase3Data,3,FALSE))+IF(ISNA(VLOOKUP(A13,Phase4Data,3,FALSE))=TRUE,0,VLOOKUP(A13,Phase4Data,3,FALSE))+IF(ISNA(VLOOKUP(A13,Phase5Data,3,FALSE))=TRUE,0,VLOOKUP(A13,Phase5Data,3,FALSE))+IF(ISNA(VLOOKUP(A13,Phase6Data,3,FALSE))=TRUE,0,VLOOKUP(A13,Phase6Data,3,FALSE))+IF(ISNA(VLOOKUP(A13,Phase7Data,3,FALSE))=TRUE,0,VLOOKUP(A13,Phase7Data,3,FALSE))+IF(ISNA(VLOOKUP(A13,Phase8Data,3,FALSE))=TRUE,0,VLOOKUP(A13,Phase8Data,3,FALSE))+IF(ISNA(VLOOKUP(A13,Phase9Data,3,FALSE))=TRUE,0,VLOOKUP(A13,Phase9Data,3,FALSE))+IF(ISNA(VLOOKUP(A13,Phase10Data,3,FALSE))=TRUE,0,VLOOKUP(A13,Phase10Data,3,FALSE)),IF(B13="HB Release",0,"")) -> 16522.71491 | D13: =IF(B13<=100,IF(ISNA(VLOOKUP(A13,Phase1Data,4,FALSE))=TRUE,0,VLOOKUP(A13,Phase1Data,4,FALSE))+IF(ISNA(VLOOKUP(A13,Phase2Data,4,FALSE))=TRUE,0,VLOOKUP(A13,Phase2Data,4,FALSE))+IF(ISNA(VLOOKUP(A13,Phase3Data,4,FALSE))=TRUE,0,VLOOKUP(A13,Phase3Data,4,FALSE))+IF(ISNA(VLOOKUP(A13,Phase4Data,4,FALSE))=TRUE,0,VLOOKUP(A13,Phase4Data,4,FALSE))+IF(ISNA(VLOOKUP(A13,Phase5Data,4,FALSE))=TRUE,0,VLOOKUP(A13,Phase5Data,4,FALSE))+IF(ISNA(VLOOKUP(A13,Phase6Data,4,FALSE))=TRUE,0,VLOOKUP(A13,Phase6Data,4,FALSE))+IF(ISNA(VLOOKUP(A13,Phase7Data,4,FALSE))=TRUE,0,VLOOKUP(A13,Phase7Data,4,FALSE))+IF(ISNA(VLOOKUP(A13,Phase8Data,4,FALSE))=TRUE,0,VLOOKUP(A13,Phase8Data,4,FALSE))+IF(ISNA(VLOOKUP(A13,Phase9Data,4,FALSE))=TRUE,0,VLOOKUP(A13,Phase9Data,4,FALSE))+IF(ISNA(VLOOKUP(A13,Phase10Data,4,FALSE))=TRUE,0,VLOOKUP(A13,Phase10Data,4,FALSE)),IF(B13="HB Release",G12*-1,"")) -> 1652.271491 | E13: =IF(B13<=100,C13-D13,IF(B13="HB Release",C13-D13,"")) -> 14870.44342 | F13: =IF(A13<>"",F12+C13,"") -> 20690.95459 | G13: =IF(A13<>"",G12+D13,"") -> 2069.095459 | H13: =IF(B13<=100,F13-G13,IF(B13="HB Release",F13-G13,"")) -> 18621.85913 | I13: =IF(B13<=100,IF(ISNA(VLOOKUP(A13,Phase1Data,11,FALSE))=TRUE,0,VLOOKUP(A13,Phase1Data,11,FALSE))+IF(ISNA(VLOOKUP(A13,Phase2Data,11,FALSE))=TRUE,0,VLOOKUP(A13,Phase2Data,11,FALSE))+IF(ISNA(VLOOKUP(A13,Phase3Data,11,FALSE))=TRUE,0,VLOOKUP(A13,Phase3Data,11,FALSE))+IF(ISNA(VLOOKUP(A13,Phase4Data,11,FALSE))=TRUE,0,VLOOKUP(A13,Phase4Data,11,FALSE))+IF(ISNA(VLOOKUP(A13,Phase5Data,11,FALSE))=TRUE,0,VLOOKUP(A13,Phase5Data,11,FALSE))+IF(ISNA(VLOOKUP(A13,Phase6Data,11,FALSE))=TRUE,0,VLOOKUP(A13,Phase6Data,11,FALSE))+IF(ISNA(VLOOKUP(A13,Phase7Data,11,FALSE))=TRUE,0,VLOOKUP(A13,Phase7Data,11,FALSE))+IF(ISNA(VLOOKUP(A13,Phase8Data,11,FALSE))=TRUE,0,VLOOKUP(A13,Phase8Data,11,FALSE))+IF(ISNA(VLOOKUP(A13,Phase9Data,11,FALSE))=TRUE,0,VLOOKUP(A13,Phase9Data,11,FALSE))+IF(ISNA(VLOOKUP(A13,Phase10Data,11,FALSE))=TRUE,0,VLOOKUP(A13,Phase10Data,11,FALSE)),IF(B13="HB Release",0,"")) -> 0 | J13: =IF(B13<=100,K13-K12,"") -> 14870.44342 | K13: =IF(B13<=100,IF(H13-I13>0,H13-I13,0),IF(B13="HB Release",H13-I13,"")) -> 18621.85913 | L13: =IF(B13<=100,M13-M12,"") -> 14870.44342 | M13: =IF(B13<=100,H13+I13,IF(B13="HB Release",H13+I13,"")) -> 18621.85913 | N13: 0 | O13: =IF(N13>0,N13 + O12,O12) -> 0 | P13: =IF(ISBLANK(A13), , A13+ PaymentDate) -> 2009-04-24 | Q13: =IF(ISBLANK(N13), , N13) -> 0 | R13: =IF(O13=0, 0, O13) -> 0
A14: 2009-04-25 | B14: 9.125475285 | C14: 39294.30693 | D14: 3929.430693 | E14: =IF(B14<=100,C14-D14,IF(B14="HB Release",C14-D14,"")) -> 35364.87624 | F14: =IF(A14<>"",F13+C14,"") -> 59985.26152 | G14: =IF(A14<>"",G13+D14,"") -> 5998.526152 | H14: =IF(B14<=100,F14-G14,IF(B14="HB Release",F14-G14,"")) -> 53986.73537 | I14: 0 | J14: =IF(B14<=100,K14-K13,"") -> 35364.87624 | K14: =IF(B14<=100,IF(H14-I14>0,H14-I14,0),IF(B14="HB Release",H14-I14,"")) -> 53986.73537 | L14: =IF(B14<=100,M14-M13,"") -> 35364.87624 | M14: =IF(B14<=100,H14+I14,IF(B14="HB Release",H14+I14,"")) -> 53986.73537 | N14: 0 | O14: =IF(N14>0,N14 + O13,O13) -> 0 | P14: =IF(ISBLANK(A14), , A14+ PaymentDate) -> 2009-05-25 | Q14: =IF(ISBLANK(N14), , N14) -> 0 | R14: =IF(O14=0, 0, O14) -> 0
A15: 2009-05-25 | B15: 12.92775665 | C15: 49931.23488 | D15: 4993.123488 | E15: 44938.11139 | F15: 109916.4964 | G15: 10991.64964 | H15: 98924.84676 | I15: 0 | J15: 44938.11139 | K15: 98924.84676 | L15: 44938.11139 | M15: 98924.84676 | N15: 0 | O15: =IF(N15>0,N15 + O14,O14) -> 0 | P15: =IF(ISBLANK(A15), , A15+ PaymentDate) -> 2009-06-24 | Q15: =IF(ISBLANK(N15), , N15) -> 0 | R15: =IF(O15=0, 0, O15) -> 0
A16: 2009-06-25 | B16: 16.85678074 | C16: 48975.63157 | D16: 4897.563157 | E16: 44078.06841 | F16: 158892.128 | G16: 15889.2128 | H16: 143002.9152 | I16: 0 | J16: 44078.06841 | K16: 143002.9152 | L16: 44078.06841 | M16: 143002.9152 | N16: 0 | O16: =IF(N16>0,N16 + O15,O15) -> 0 | P16: =IF(ISBLANK(A16), , A16+ PaymentDate) -> 2009-07-25 | Q16: =IF(ISBLANK(N16), , N16) -> 0 | R16: =IF(O16=0, 0, O16) -> 0
A17: 2009-07-25 | B17: 20.6590621 | C17: 37065.1634 | D17: 3706.51634 | E17: 33358.64706 | F17: 195957.2914 | G17: 19595.72914 | H17: 176361.5622 | I17: 0 | J17: 33358.64706 | K17: 176361.5622 | L17: 33358.64706 | M17: 176361.5622 | N17: 0 | O17: =IF(N17>0,N17 + O16,O16) -> 0 | P17: =IF(ISBLANK(A17), , A17+ PaymentDate) -> 2009-08-24 | Q17: =IF(ISBLANK(N17), , N17) -> 0 | R17: =IF(O17=0, 0, O17) -> 0
A18: 2009-08-25 | B18: 24.58808619 | C18: 26664.86467 | D18: 2666.486467 | E18: 23998.3782 | F18: 222622.156 | G18: 22262.2156 | H18: 200359.9404 | I18: 0 | J18: 23998.3782 | K18: 200359.9404 | L18: 23998.3782 | M18: 200359.9404 | N18: 0 | O18: =IF(N18>0,N18 + O17,O17) -> 0 | P18: =IF(ISBLANK(A18), , A18+ PaymentDate) -> 2009-09-24 | Q18: =IF(ISBLANK(N18), , N18) -> 0 | R18: =IF(O18=0, 0, O18) -> 0
A19: 2009-09-25 | B19: 28.51711027 | C19: 454438.3673 | D19: 45443.83673 | E19: 408994.5306 | F19: 677060.5233 | G19: 67706.05233 | H19: 609354.471 | I19: 0 | J19: 408994.5306 | K19: 609354.471 | L19: 408994.5306 | M19: 609354.471 | N19: 0 | O19: =IF(N19>0,N19 + O18,O18) -> 0 | P19: =IF(ISBLANK(A19), , A19+ PaymentDate) -> 2009-10-25 | Q19: =IF(ISBLANK(N19), , N19) -> 0 | R19: =IF(O19=0, 0, O19) -> 0
A20: 2009-10-25 | B20: 32.31939163 | C20: 580147.1537 | D20: 34658.11537 | E20: 545489.0383 | F20: 1257207.677 | G20: 102364.1677 | H20: 1154843.509 | I20: 0 | J20: 545489.0383 | K20: 1154843.509 | L20: 545489.0383 | M20: 1154843.509 | N20: 0 | O20: =IF(N20>0,N20 + O19,O19) -> 0 | P20: =IF(ISBLANK(A20), , A20+ PaymentDate) -> 2009-11-24 | Q20: =IF(ISBLANK(N20), , N20) -> 0 | R20: =IF(O20=0, 0, O20) -> 0
A21: 2009-11-25 | B21: 36.24841572 | C21: 1061273.809 | D21: 106127.3809 | E21: 955146.4284 | F21: 2318481.486 | G21: 208491.5486 | H21: 2109989.938 | I21: 0 | J21: 955146.4284 | K21: 2109989.938 | L21: 955146.4284 | M21: 2109989.938 | N21: 0 | O21: =IF(N21>0,N21 + O20,O20) -> 0 | P21: =IF(ISBLANK(A21), , A21+ PaymentDate) -> 2009-12-25 | Q21: =IF(ISBLANK(N21), , N21) -> 0 | R21: =IF(O21=0, 0, O21) -> 0
A22: 2009-12-25 | B22: 40.05069708 | C22: 1588782.24 | D22: 158878.224 | E22: 1429904.016 | F22: 3907263.726 | G22: 367369.7726 | H22: 3539893.954 | I22: 0 | J22: 1429904.016 | K22: 3539893.954 | L22: 1429904.016 | M22: 3539893.954 | N22: 0 | O22: =IF(N22>0,N22 + O21,O21) -> 0 | P22: =IF(ISBLANK(A22), , A22+ PaymentDate) -> 2010-01-24 | Q22: =IF(ISBLANK(N22), , N22) -> 0 | R22: =IF(O22=0, 0, O22) -> 0
A23: 2010-01-25 | B23: 43.97972117 | C23: 2273756.418 | D23: 227375.6418 | E23: 2046380.777 | F23: 6181020.145 | G23: 594745.4145 | H23: 5586274.73 | I23: 0 | J23: 2046380.777 | K23: 5586274.73 | L23: 2046380.777 | M23: 5586274.73 | N23: 0 | O23: =IF(N23>0,N23 + O22,O22) -> 0 | P23: =IF(ISBLANK(A23), , A23+ PaymentDate) -> 2010-02-24 | Q23: =IF(ISBLANK(N23), , N23) -> 0 | R23: =IF(O23=0, 0, O23) -> 0
A24: 2010-02-25 | B24: 47.90874525 | C24: 2882640.374 | D24: 288264.0374 | E24: 2594376.336 | F24: 9063660.518 | G24: 883009.4518 | H24: 8180651.067 | I24: 0 | J24: 2594376.336 | K24: 8180651.067 | L24: 2594376.336 | M24: 8180651.067 | N24: 0 | O24: =IF(N24>0,N24 + O23,O23) -> 0 | P24: =IF(ISBLANK(A24), , A24+ PaymentDate) -> 2010-03-27 | Q24: =IF(ISBLANK(N24), , N24) -> 0 | R24: =IF(O24=0, 0, O24) -> 0
A25: 2010-03-25 | B25: 51.45754119 | C25: 3036372.584 | D25: 303637.2584 | E25: 2732735.325 | F25: 12100033.1 | G25: 1186646.71 | H25: 10913386.39 | I25: 0 | J25: 2732735.325 | K25: 10913386.39 | L25: 2732735.325 | M25: 10913386.39 | N25: 0 | O25: =IF(N25>0,N25 + O24,O24) -> 0 | P25: =IF(ISBLANK(A25), , A25+ PaymentDate) -> 2010-04-24 | Q25: =IF(ISBLANK(N25), , N25) -> 0 | R25: =IF(O25=0, 0, O25) -> 0
A26: 2010-04-25 | B26: 55.38656527 | C26: 3695134.128 | D26: 369513.4128 | E26: 3325620.715 | F26: 15795167.23 | G26: 1556160.123 | H26: 14239007.11 | I26: 0 | J26: 3325620.715 | K26: 14239007.11 | L26: 3325620.715 | M26: 14239007.11 | N26: 0 | O26: =IF(N26>0,N26 + O25,O25) -> 0 | P26: =IF(ISBLANK(A26), , A26+ PaymentDate) -> 2010-05-25 | Q26: =IF(ISBLANK(N26), , N26) -> 0 | R26: =IF(O26=0, 0, O26) -> 0
A27: 2010-05-25 | B27: 59.18884664 | C27: 3749502.517 | D27: 374950.2517 | E27: 3374552.265 | F27: 19544669.75 | G27: 1931110.375 | H27: 17613559.37 | I27: 0 | J27: 3374552.265 | K27: 17613559.37 | L27: 3374552.265 | M27: 17613559.37 | N27: 0 | O27: =IF(N27>0,N27 + O26,O26) -> 0 | P27: =IF(ISBLANK(A27), , A27+ PaymentDate) -> 2010-06-24 | Q27: =IF(ISBLANK(N27), , N27) -> 0 | R27: =IF(O27=0, 0, O27) -> 0
A28: 2010-06-25 | B28: 63.11787072 | C28: 3891717.834 | D28: 389171.7834 | E28: 3502546.051 | F28: 23436387.58 | G28: 2320282.158 | H28: 21116105.42 | I28: 0 | J28: 3502546.051 | K28: 21116105.42 | L28: 3502546.051 | M28: 21116105.42 | N28: 0 | O28: =IF(N28>0,N28 + O27,O27) -> 0 | P28: =IF(ISBLANK(A28), , A28+ PaymentDate) -> 2010-07-25 | Q28: =IF(ISBLANK(N28), , N28) -> 0 | R28: =IF(O28=0, 0, O28) -> 0
A29: 2010-07-25 | B29: 66.92015209 | C29: 3652738.007 | D29: 365273.8007 | E29: 3287464.206 | F29: 27089125.59 | G29: 2685555.959 | H29: 24403569.63 | I29: 0 | J29: 3287464.206 | K29: 24403569.63 | L29: 3287464.206 | M29: 24403569.63 | N29: 0 | O29: =IF(N29>0,N29 + O28,O28) -> 0 | P29: =IF(ISBLANK(A29), , A29+ PaymentDate) -> 2010-08-24 | Q29: =IF(ISBLANK(N29), , N29) -> 0 | R29: =IF(O29=0, 0, O29) -> 0
A30: 2010-08-25 | B30: 70.84917617 | C30: 3555620.398 | D30: 355562.0398 | E30: 3200058.358 | F30: 30644745.99 | G30: 3041117.999 | H30: 27603627.99 | I30: 0 | J30: 3200058.358 | K30: 27603627.99 | L30: 3200058.358 | M30: 27603627.99 | N30: 0 | O30: =IF(N30>0,N30 + O29,O29) -> 0 | P30: =IF(ISBLANK(A30), , A30+ PaymentDate) -> 2010-09-24 | Q30: =IF(ISBLANK(N30), , N30) -> 0 | R30: =IF(O30=0, 0, O30) -> 0
A31: 2010-09-25 | B31: 74.77820025 | C31: 3265551.876 | D31: 326555.1876 | E31: 2938996.688 | F31: 33910297.86 | G31: 3367673.186 | H31: 30542624.68 | I31: 0 | J31: 2938996.688 | K31: 30542624.68 | L31: 2938996.688 | M31: 30542624.68 | N31: 0 | O31: =IF(N31>0,N31 + O30,O30) -> 0 | P31: =IF(ISBLANK(A31), , A31+ PaymentDate) -> 2010-10-25 | Q31: =IF(ISBLANK(N31), , N31) -> 0 | R31: =IF(O31=0, 0, O31) -> 0
A32: 2010-10-25 | B32: 78.58048162 | C32: 2849442.261 | D32: 284944.2261 | E32: 2564498.035 | F32: 36759740.12 | G32: 3652617.412 | H32: 33107122.71 | I32: 0 | J32: 2564498.035 | K32: 33107122.71 | L32: 2564498.035 | M32: 33107122.71 | N32: 0 | O32: =IF(N32>0,N32 + O31,O31) -> 0 | P32: =IF(ISBLANK(A32), , A32+ PaymentDate) -> 2010-11-24 | Q32: =IF(ISBLANK(N32), , N32) -> 0 | R32: =IF(O32=0, 0, O32) -> 0
A33: 2010-11-25 | B33: 82.5095057 | C33: 2612289.906 | D33: 261228.9906 | E33: 2351060.916 | F33: 39372030.03 | G33: 3913846.403 | H33: 35458183.63 | I33: 0 | J33: 2351060.916 | K33: 35458183.63 | L33: 2351060.916 | M33: 35458183.63 | N33: 0 | O33: =IF(N33>0,N33 + O32,O32) -> 0 | P33: =IF(ISBLANK(A33), , A33+ PaymentDate) -> 2010-12-25 | Q33: =IF(ISBLANK(N33), , N33) -> 0 | R33: =IF(O33=0, 0, O33) -> 0
A34: 2010-12-25 | B34: 86.31178707 | C34: 2213201.099 | D34: 221320.1099 | E34: 1991880.989 | F34: 41585231.13 | G34: 4135166.513 | H34: 37450064.62 | I34: 0 | J34: 1991880.989 | K34: 37450064.62 | L34: 1991880.989 | M34: 37450064.62 | N34: 0 | O34: =IF(N34>0,N34 + O33,O33) -> 0 | P34: =IF(ISBLANK(A34), , A34+ PaymentDate) -> 2011-01-24 | Q34: =IF(ISBLANK(N34), , N34) -> 0 | R34: =IF(O34=0, 0, O34) -> 0
A35: 2011-01-25 | B35: 90.24081115 | C35: 1980461.765 | D35: 198046.1765 | E35: 1782415.588 | F35: 43565692.89 | G35: 4333212.689 | H35: 39232480.2 | I35: 0 | J35: 1782415.588 | K35: 39232480.2 | L35: 1782415.588 | M35: 39232480.2 | N35: 0 | O35: =IF(N35>0,N35 + O34,O34) -> 0 | P35: =IF(ISBLANK(A35), , A35+ PaymentDate) -> 2011-02-24 | Q35: =IF(ISBLANK(N35), , N35) -> 0 | R35: =IF(O35=0, 0, O35) -> 0
A36: 2011-02-25 | B36: 94.16983523 | C36: 1695235.642 | D36: 169523.5642 | E36: 1525712.077 | F36: 45260928.54 | G36: 4502736.254 | H36: 40758192.28 | I36: 0 | J36: 1525712.077 | K36: 40758192.28 | L36: 1525712.077 | M36: 40758192.28 | N36: 0 | O36: =IF(N36>0,N36 + O35,O35) -> 0 | P36: =IF(ISBLANK(A36), , A36+ PaymentDate) -> 2011-03-27 | Q36: =IF(ISBLANK(N36), , N36) -> 0 | R36: =IF(O36=0, 0, O36) -> 0
A37: 2011-03-25 | B37: 97.71863118 | C37: 1310980.064 | D37: 131098.0064 | E37: 1179882.058 | F37: 46571908.6 | G37: 4633834.26 | H37: 41938074.34 | I37: 0 | J37: 1179882.058 | K37: 41938074.34 | L37: 1179882.058 | M37: 41938074.34 | N37: 0 | O37: =IF(N37>0,N37 + O36,O36) -> 0 | P37: =IF(ISBLANK(A37), , A37+ PaymentDate) -> 2011-04-24 | Q37: =IF(ISBLANK(N37), , N37) -> 0 | R37: =IF(O37=0, 0, O37) -> 0
A38: 2011-04-25 | B38: 100 | C38: 743117.4008 | D38: 74311.74008 | E38: 668805.6607 | F38: 47315026 | G38: 4708146 | H38: 42606880 | I38: 0 | J38: 668805.6607 | K38: 42606880 | L38: 668805.6607 | M38: 42606880 | N38: 0 | O38: =IF(N38>0,N38 + O37,O37) -> 0 | P38: =IF(ISBLANK(A38), , A38+ PaymentDate) -> 2011-05-25 | Q38: =IF(ISBLANK(N38), , N38) -> 0 | R38: =IF(O38=0, 0, O38) -> 0
A39: 2011-06-25 | B39: HB Release | C39: 0 | D39: -4708146 | E39: 4708146 | F39: 47315026 | G39: 0 | H39: 47315026 | I39: 0 | K39: 47315026 | M39: 47315026 | O39: =O38 -> 0 | P39: =IF(ISBLANK(A39), , A39+ PaymentDate) -> 2011-07-25 | Q39: =IF(ISBLANK(N39), , N39) ->  | R39: =IF(O39=0, 0, O39) -> 0
N76: =IF(B76<=100,IF(ISNA(VLOOKUP(A76,Phase1Data,16,FALSE))=TRUE,0,VLOOKUP(A76,Phase1Data,16,FALSE))+IF(ISNA(VLOOKUP(A76,Phase2Data,16,FALSE))=TRUE,0,VLOOKUP(A76,Phase2Data,16,FALSE))+IF(ISNA(VLOOKUP(A76,Phase3Data,16,FALSE))=TRUE,0,VLOOKUP(A76,Phase3Data,16,FALSE))+IF(ISNA(VLOOKUP(A76,Phase4Data,16,FALSE))=TRUE,0,VLOOKUP(A76,Phase4Data,16,FALSE))+IF(ISNA(VLOOKUP(A76,Phase5Data,16,FALSE))=TRUE,0,VLOOKUP(A76,Phase5Data,16,FALSE))+IF(ISNA(VLOOKUP(A76,Phase6Data,16,FALSE))=TRUE,0,VLOOKUP(A76,Phase6Data,16,FALSE))+IF(ISNA(VLOOKUP(A76,Phase7Data,16,FALSE))=TRUE,0,VLOOKUP(A76,Phase7Data,16,FALSE))+IF(ISNA(VLOOKUP(A76,Phase8Data,16,FALSE))=TRUE,0,VLOOKUP(A76,Phase8Data,16,FALSE))+IF(ISNA(VLOOKUP(A76,Phase9Data,16,FALSE))=TRUE,0,VLOOKUP(A76,Phase9Data,16,FALSE))+IF(ISNA(VLOOKUP(A76,Phase10Data,16,FALSE))=TRUE,0,VLOOKUP(A76,Phase10Data,16,FALSE)),"") -> 
A77: =IF(A76 = "", "", IF(BillingDay<>0, IF(B76<100,DATE(YEAR(A76),MONTH(A76)+1,DAY(A76)),IF(B76=100,MAX(HBReleaseRange),"")), IF(B76<100,(DATE(YEAR(A76),MONTH(A76)+2,1)-1),IF(B76=100,MAX(HBReleaseRange),"")))) ->  | B77: =IF(B76<100,MIN((A77-MIN(StartRange))/(MAX(CompleteRange)-MIN(StartRange))*100,100),IF(B76=100,IF(A77<>"","HB Release",""),"")) ->  | C77: =IF(B77<=100,IF(ISNA(VLOOKUP(A77,Phase1Data,3,FALSE))=TRUE,0,VLOOKUP(A77,Phase1Data,3,FALSE))+IF(ISNA(VLOOKUP(A77,Phase2Data,3,FALSE))=TRUE,0,VLOOKUP(A77,Phase2Data,3,FALSE))+IF(ISNA(VLOOKUP(A77,Phase3Data,3,FALSE))=TRUE,0,VLOOKUP(A77,Phase3Data,3,FALSE))+IF(ISNA(VLOOKUP(A77,Phase4Data,3,FALSE))=TRUE,0,VLOOKUP(A77,Phase4Data,3,FALSE))+IF(ISNA(VLOOKUP(A77,Phase5Data,3,FALSE))=TRUE,0,VLOOKUP(A77,Phase5Data,3,FALSE))+IF(ISNA(VLOOKUP(A77,Phase6Data,3,FALSE))=TRUE,0,VLOOKUP(A77,Phase6Data,3,FALSE))+IF(ISNA(VLOOKUP(A77,Phase7Data,3,FALSE))=TRUE,0,VLOOKUP(A77,Phase7Data,3,FALSE))+IF(ISNA(VLOOKUP(A77,Phase8Data,3,FALSE))=TRUE,0,VLOOKUP(A77,Phase8Data,3,FALSE))+IF(ISNA(VLOOKUP(A77,Phase9Data,3,FALSE))=TRUE,0,VLOOKUP(A77,Phase9Data,3,FALSE))+IF(ISNA(VLOOKUP(A77,Phase10Data,3,FALSE))=TRUE,0,VLOOKUP(A77,Phase10Data,3,FALSE)),IF(B77="HB Release",0,"")) ->  | D77: =IF(B77<=100,IF(ISNA(VLOOKUP(A77,Phase1Data,4,FALSE))=TRUE,0,VLOOKUP(A77,Phase1Data,4,FALSE))+IF(ISNA(VLOOKUP(A77,Phase2Data,4,FALSE))=TRUE,0,VLOOKUP(A77,Phase2Data,4,FALSE))+IF(ISNA(VLOOKUP(A77,Phase3Data,4,FALSE))=TRUE,0,VLOOKUP(A77,Phase3Data,4,FALSE))+IF(ISNA(VLOOKUP(A77,Phase4Data,4,FALSE))=TRUE,0,VLOOKUP(A77,Phase4Data,4,FALSE))+IF(ISNA(VLOOKUP(A77,Phase5Data,4,FALSE))=TRUE,0,VLOOKUP(A77,Phase5Data,4,FALSE))+IF(ISNA(VLOOKUP(A77,Phase6Data,4,FALSE))=TRUE,0,VLOOKUP(A77,Phase6Data,4,FALSE))+IF(ISNA(VLOOKUP(A77,Phase7Data,4,FALSE))=TRUE,0,VLOOKUP(A77,Phase7Data,4,FALSE))+IF(ISNA(VLOOKUP(A77,Phase8Data,4,FALSE))=TRUE,0,VLOOKUP(A77,Phase8Data,4,FALSE))+IF(ISNA(VLOOKUP(A77,Phase9Data,4,FALSE))=TRUE,0,VLOOKUP(A77,Phase9Data,4,FALSE))+IF(ISNA(VLOOKUP(A77,Phase10Data,4,FALSE))=TRUE,0,VLOOKUP(A77,Phase10Data,4,FALSE)),IF(B77="HB Release",G76*-1,"")) ->  | I77: =IF(B77<=100,IF(ISNA(VLOOKUP(A77,Phase1Data,11,FALSE))=TRUE,0,VLOOKUP(A77,Phase1Data,11,FALSE))+IF(ISNA(VLOOKUP(A77,Phase2Data,11,FALSE))=TRUE,0,VLOOKUP(A77,Phase2Data,11,FALSE))+IF(ISNA(VLOOKUP(A77,Phase3Data,11,FALSE))=TRUE,0,VLOOKUP(A77,Phase3Data,11,FALSE))+IF(ISNA(VLOOKUP(A77,Phase4Data,11,FALSE))=TRUE,0,VLOOKUP(A77,Phase4Data,11,FALSE))+IF(ISNA(VLOOKUP(A77,Phase5Data,11,FALSE))=TRUE,0,VLOOKUP(A77,Phase5Data,11,FALSE))+IF(ISNA(VLOOKUP(A77,Phase6Data,11,FALSE))=TRUE,0,VLOOKUP(A77,Phase6Data,11,FALSE))+IF(ISNA(VLOOKUP(A77,Phase7Data,11,FALSE))=TRUE,0,VLOOKUP(A77,Phase7Data,11,FALSE))+IF(ISNA(VLOOKUP(A77,Phase8Data,11,FALSE))=TRUE,0,VLOOKUP(A77,Phase8Data,11,FALSE))+IF(ISNA(VLOOKUP(A77,Phase9Data,11,FALSE))=TRUE,0,VLOOKUP(A77,Phase9Data,11,FALSE))+IF(ISNA(VLOOKUP(A77,Phase10Data,11,FALSE))=TRUE,0,VLOOKUP(A77,Phase10Data,11,FALSE)),IF(B77="HB Release",0,"")) -> 
E78: =IF(B78<=100,C78-D78,IF(B78="HB Release",C78-D78,"")) ->  | F78: =IF(A78<>"",F77+C78,"") ->  | G78: =IF(A78<>"",G77+D78,"") ->  | H78: =IF(B78<=100,F78-G78,IF(B78="HB Release",F78-G78,"")) ->  | J78: =IF(B78<=100,K78-K77,"") ->  | K78: =IF(B78<=100,IF(H78-I78>0,H78-I78,0),IF(B78="HB Release",H78-I78,"")) ->  | L78: =IF(B78<=100,M78-M77,"") ->  | M78: =IF(B78<=100,H78+I78,IF(B78="HB Release",H78+I78,"")) -> 
N140: =IF(B140<=100,IF(ISNA(VLOOKUP(A140,Phase1Data,16,FALSE))=TRUE,0,VLOOKUP(A140,Phase1Data,16,FALSE))+IF(ISNA(VLOOKUP(A140,Phase2Data,16,FALSE))=TRUE,0,VLOOKUP(A140,Phase2Data,16,FALSE))+IF(ISNA(VLOOKUP(A140,Phase3Data,16,FALSE))=TRUE,0,VLOOKUP(A140,Phase3Data,16,FALSE))+IF(ISNA(VLOOKUP(A140,Phase4Data,16,FALSE))=TRUE,0,VLOOKUP(A140,Phase4Data,16,FALSE))+IF(ISNA(VLOOKUP(A140,Phase5Data,16,FALSE))=TRUE,0,VLOOKUP(A140,Phase5Data,16,FALSE))+IF(ISNA(VLOOKUP(A140,Phase6Data,16,FALSE))=TRUE,0,VLOOKUP(A140,Phase6Data,16,FALSE))+IF(ISNA(VLOOKUP(A140,Phase7Data,16,FALSE))=TRUE,0,VLOOKUP(A140,Phase7Data,16,FALSE))+IF(ISNA(VLOOKUP(A140,Phase8Data,16,FALSE))=TRUE,0,VLOOKUP(A140,Phase8Data,16,FALSE))+IF(ISNA(VLOOKUP(A140,Phase9Data,16,FALSE))=TRUE,0,VLOOKUP(A140,Phase9Data,16,FALSE))+IF(ISNA(VLOOKUP(A140,Phase10Data,16,FALSE))=TRUE,0,VLOOKUP(A140,Phase10Data,16,FALSE)),"") -> 
A141: =IF(A140 = "", "", IF(BillingDay<>0, IF(B140<100,DATE(YEAR(A140),MONTH(A140)+1,DAY(A140)),IF(B140=100,MAX(HBReleaseRange),"")), IF(B140<100,(DATE(YEAR(A140),MONTH(A140)+2,1)-1),IF(B140=100,MAX(HBReleaseRange),"")))) ->  | B141: =IF(B140<100,MIN((A141-MIN(StartRange))/(MAX(CompleteRange)-MIN(StartRange))*100,100),IF(B140=100,IF(A141<>"","HB Release",""),"")) ->  | C141: =IF(B141<=100,IF(ISNA(VLOOKUP(A141,Phase1Data,3,FALSE))=TRUE,0,VLOOKUP(A141,Phase1Data,3,FALSE))+IF(ISNA(VLOOKUP(A141,Phase2Data,3,FALSE))=TRUE,0,VLOOKUP(A141,Phase2Data,3,FALSE))+IF(ISNA(VLOOKUP(A141,Phase3Data,3,FALSE))=TRUE,0,VLOOKUP(A141,Phase3Data,3,FALSE))+IF(ISNA(VLOOKUP(A141,Phase4Data,3,FALSE))=TRUE,0,VLOOKUP(A141,Phase4Data,3,FALSE))+IF(ISNA(VLOOKUP(A141,Phase5Data,3,FALSE))=TRUE,0,VLOOKUP(A141,Phase5Data,3,FALSE))+IF(ISNA(VLOOKUP(A141,Phase6Data,3,FALSE))=TRUE,0,VLOOKUP(A141,Phase6Data,3,FALSE))+IF(ISNA(VLOOKUP(A141,Phase7Data,3,FALSE))=TRUE,0,VLOOKUP(A141,Phase7Data,3,FALSE))+IF(ISNA(VLOOKUP(A141,Phase8Data,3,FALSE))=TRUE,0,VLOOKUP(A141,Phase8Data,3,FALSE))+IF(ISNA(VLOOKUP(A141,Phase9Data,3,FALSE))=TRUE,0,VLOOKUP(A141,Phase9Data,3,FALSE))+IF(ISNA(VLOOKUP(A141,Phase10Data,3,FALSE))=TRUE,0,VLOOKUP(A141,Phase10Data,3,FALSE)),IF(B141="HB Release",0,"")) ->  | D141: =IF(B141<=100,IF(ISNA(VLOOKUP(A141,Phase1Data,4,FALSE))=TRUE,0,VLOOKUP(A141,Phase1Data,4,FALSE))+IF(ISNA(VLOOKUP(A141,Phase2Data,4,FALSE))=TRUE,0,VLOOKUP(A141,Phase2Data,4,FALSE))+IF(ISNA(VLOOKUP(A141,Phase3Data,4,FALSE))=TRUE,0,VLOOKUP(A141,Phase3Data,4,FALSE))+IF(ISNA(VLOOKUP(A141,Phase4Data,4,FALSE))=TRUE,0,VLOOKUP(A141,Phase4Data,4,FALSE))+IF(ISNA(VLOOKUP(A141,Phase5Data,4,FALSE))=TRUE,0,VLOOKUP(A141,Phase5Data,4,FALSE))+IF(ISNA(VLOOKUP(A141,Phase6Data,4,FALSE))=TRUE,0,VLOOKUP(A141,Phase6Data,4,FALSE))+IF(ISNA(VLOOKUP(A141,Phase7Data,4,FALSE))=TRUE,0,VLOOKUP(A141,Phase7Data,4,FALSE))+IF(ISNA(VLOOKUP(A141,Phase8Data,4,FALSE))=TRUE,0,VLOOKUP(A141,Phase8Data,4,FALSE))+IF(ISNA(VLOOKUP(A141,Phase9Data,4,FALSE))=TRUE,0,VLOOKUP(A141,Phase9Data,4,FALSE))+IF(ISNA(VLOOKUP(A141,Phase10Data,4,FALSE))=TRUE,0,VLOOKUP(A141,Phase10Data,4,FALSE)),IF(B141="HB Release",G140*-1,"")) ->  | I141: =IF(B141<=100,IF(ISNA(VLOOKUP(A141,Phase1Data,11,FALSE))=TRUE,0,VLOOKUP(A141,Phase1Data,11,FALSE))+IF(ISNA(VLOOKUP(A141,Phase2Data,11,FALSE))=TRUE,0,VLOOKUP(A141,Phase2Data,11,FALSE))+IF(ISNA(VLOOKUP(A141,Phase3Data,11,FALSE))=TRUE,0,VLOOKUP(A141,Phase3Data,11,FALSE))+IF(ISNA(VLOOKUP(A141,Phase4Data,11,FALSE))=TRUE,0,VLOOKUP(A141,Phase4Data,11,FALSE))+IF(ISNA(VLOOKUP(A141,Phase5Data,11,FALSE))=TRUE,0,VLOOKUP(A141,Phase5Data,11,FALSE))+IF(ISNA(VLOOKUP(A141,Phase6Data,11,FALSE))=TRUE,0,VLOOKUP(A141,Phase6Data,11,FALSE))+IF(ISNA(VLOOKUP(A141,Phase7Data,11,FALSE))=TRUE,0,VLOOKUP(A141,Phase7Data,11,FALSE))+IF(ISNA(VLOOKUP(A141,Phase8Data,11,FALSE))=TRUE,0,VLOOKUP(A141,Phase8Data,11,FALSE))+IF(ISNA(VLOOKUP(A141,Phase9Data,11,FALSE))=TRUE,0,VLOOKUP(A141,Phase9Data,11,FALSE))+IF(ISNA(VLOOKUP(A141,Phase10Data,11,FALSE))=TRUE,0,VLOOKUP(A141,Phase10Data,11,FALSE)),IF(B141="HB Release",0,"")) -> 
E142: =IF(B142<=100,C142-D142,IF(B142="HB Release",C142-D142,"")) ->  | F142: =IF(A142<>"",F141+C142,"") ->  | G142: =IF(A142<>"",G141+D142,"") ->  | H142: =IF(B142<=100,F142-G142,IF(B142="HB Release",F142-G142,"")) ->  | J142: =IF(B142<=100,K142-K141,"") ->  | K142: =IF(B142<=100,IF(H142-I142>0,H142-I142,0),IF(B142="HB Release",H142-I142,"")) ->  | L142: =IF(B142<=100,M142-M141,"") ->  | M142: =IF(B142<=100,H142+I142,IF(B142="HB Release",H142+I142,"")) -> 
N204: =IF(B204<=100,IF(ISNA(VLOOKUP(A204,Phase1Data,16,FALSE))=TRUE,0,VLOOKUP(A204,Phase1Data,16,FALSE))+IF(ISNA(VLOOKUP(A204,Phase2Data,16,FALSE))=TRUE,0,VLOOKUP(A204,Phase2Data,16,FALSE))+IF(ISNA(VLOOKUP(A204,Phase3Data,16,FALSE))=TRUE,0,VLOOKUP(A204,Phase3Data,16,FALSE))+IF(ISNA(VLOOKUP(A204,Phase4Data,16,FALSE))=TRUE,0,VLOOKUP(A204,Phase4Data,16,FALSE))+IF(ISNA(VLOOKUP(A204,Phase5Data,16,FALSE))=TRUE,0,VLOOKUP(A204,Phase5Data,16,FALSE))+IF(ISNA(VLOOKUP(A204,Phase6Data,16,FALSE))=TRUE,0,VLOOKUP(A204,Phase6Data,16,FALSE))+IF(ISNA(VLOOKUP(A204,Phase7Data,16,FALSE))=TRUE,0,VLOOKUP(A204,Phase7Data,16,FALSE))+IF(ISNA(VLOOKUP(A204,Phase8Data,16,FALSE))=TRUE,0,VLOOKUP(A204,Phase8Data,16,FALSE))+IF(ISNA(VLOOKUP(A204,Phase9Data,16,FALSE))=TRUE,0,VLOOKUP(A204,Phase9Data,16,FALSE))+IF(ISNA(VLOOKUP(A204,Phase10Data,16,FALSE))=TRUE,0,VLOOKUP(A204,Phase10Data,16,FALSE)),"") -> 
A205: =IF(A204 = "", "", IF(BillingDay<>0, IF(B204<100,DATE(YEAR(A204),MONTH(A204)+1,DAY(A204)),IF(B204=100,MAX(HBReleaseRange),"")), IF(B204<100,(DATE(YEAR(A204),MONTH(A204)+2,1)-1),IF(B204=100,MAX(HBReleaseRange),"")))) ->  | B205: =IF(B204<100,MIN((A205-MIN(StartRange))/(MAX(CompleteRange)-MIN(StartRange))*100,100),IF(B204=100,IF(A205<>"","HB Release",""),"")) ->  | C205: =IF(B205<=100,IF(ISNA(VLOOKUP(A205,Phase1Data,3,FALSE))=TRUE,0,VLOOKUP(A205,Phase1Data,3,FALSE))+IF(ISNA(VLOOKUP(A205,Phase2Data,3,FALSE))=TRUE,0,VLOOKUP(A205,Phase2Data,3,FALSE))+IF(ISNA(VLOOKUP(A205,Phase3Data,3,FALSE))=TRUE,0,VLOOKUP(A205,Phase3Data,3,FALSE))+IF(ISNA(VLOOKUP(A205,Phase4Data,3,FALSE))=TRUE,0,VLOOKUP(A205,Phase4Data,3,FALSE))+IF(ISNA(VLOOKUP(A205,Phase5Data,3,FALSE))=TRUE,0,VLOOKUP(A205,Phase5Data,3,FALSE))+IF(ISNA(VLOOKUP(A205,Phase6Data,3,FALSE))=TRUE,0,VLOOKUP(A205,Phase6Data,3,FALSE))+IF(ISNA(VLOOKUP(A205,Phase7Data,3,FALSE))=TRUE,0,VLOOKUP(A205,Phase7Data,3,FALSE))+IF(ISNA(VLOOKUP(A205,Phase8Data,3,FALSE))=TRUE,0,VLOOKUP(A205,Phase8Data,3,FALSE))+IF(ISNA(VLOOKUP(A205,Phase9Data,3,FALSE))=TRUE,0,VLOOKUP(A205,Phase9Data,3,FALSE))+IF(ISNA(VLOOKUP(A205,Phase10Data,3,FALSE))=TRUE,0,VLOOKUP(A205,Phase10Data,3,FALSE)),IF(B205="HB Release",0,"")) ->  | D205: =IF(B205<=100,IF(ISNA(VLOOKUP(A205,Phase1Data,4,FALSE))=TRUE,0,VLOOKUP(A205,Phase1Data,4,FALSE))+IF(ISNA(VLOOKUP(A205,Phase2Data,4,FALSE))=TRUE,0,VLOOKUP(A205,Phase2Data,4,FALSE))+IF(ISNA(VLOOKUP(A205,Phase3Data,4,FALSE))=TRUE,0,VLOOKUP(A205,Phase3Data,4,FALSE))+IF(ISNA(VLOOKUP(A205,Phase4Data,4,FALSE))=TRUE,0,VLOOKUP(A205,Phase4Data,4,FALSE))+IF(ISNA(VLOOKUP(A205,Phase5Data,4,FALSE))=TRUE,0,VLOOKUP(A205,Phase5Data,4,FALSE))+IF(ISNA(VLOOKUP(A205,Phase6Data,4,FALSE))=TRUE,0,VLOOKUP(A205,Phase6Data,4,FALSE))+IF(ISNA(VLOOKUP(A205,Phase7Data,4,FALSE))=TRUE,0,VLOOKUP(A205,Phase7Data,4,FALSE))+IF(ISNA(VLOOKUP(A205,Phase8Data,4,FALSE))=TRUE,0,VLOOKUP(A205,Phase8Data,4,FALSE))+IF(ISNA(VLOOKUP(A205,Phase9Data,4,FALSE))=TRUE,0,VLOOKUP(A205,Phase9Data,4,FALSE))+IF(ISNA(VLOOKUP(A205,Phase10Data,4,FALSE))=TRUE,0,VLOOKUP(A205,Phase10Data,4,FALSE)),IF(B205="HB Release",G204*-1,"")) ->  | I205: =IF(B205<=100,IF(ISNA(VLOOKUP(A205,Phase1Data,11,FALSE))=TRUE,0,VLOOKUP(A205,Phase1Data,11,FALSE))+IF(ISNA(VLOOKUP(A205,Phase2Data,11,FALSE))=TRUE,0,VLOOKUP(A205,Phase2Data,11,FALSE))+IF(ISNA(VLOOKUP(A205,Phase3Data,11,FALSE))=TRUE,0,VLOOKUP(A205,Phase3Data,11,FALSE))+IF(ISNA(VLOOKUP(A205,Phase4Data,11,FALSE))=TRUE,0,VLOOKUP(A205,Phase4Data,11,FALSE))+IF(ISNA(VLOOKUP(A205,Phase5Data,11,FALSE))=TRUE,0,VLOOKUP(A205,Phase5Data,11,FALSE))+IF(ISNA(VLOOKUP(A205,Phase6Data,11,FALSE))=TRUE,0,VLOOKUP(A205,Phase6Data,11,FALSE))+IF(ISNA(VLOOKUP(A205,Phase7Data,11,FALSE))=TRUE,0,VLOOKUP(A205,Phase7Data,11,FALSE))+IF(ISNA(VLOOKUP(A205,Phase8Data,11,FALSE))=TRUE,0,VLOOKUP(A205,Phase8Data,11,FALSE))+IF(ISNA(VLOOKUP(A205,Phase9Data,11,FALSE))=TRUE,0,VLOOKUP(A205,Phase9Data,11,FALSE))+IF(ISNA(VLOOKUP(A205,Phase10Data,11,FALSE))=TRUE,0,VLOOKUP(A205,Phase10Data,11,FALSE)),IF(B205="HB Release",0,"")) -> 
E206: =IF(B206<=100,C206-D206,IF(B206="HB Release",C206-D206,"")) ->  | F206: =IF(A206<>"",F205+C206,"") ->  | G206: =IF(A206<>"",G205+D206,"") ->  | H206: =IF(B206<=100,F206-G206,IF(B206="HB Release",F206-G206,"")) ->  | J206: =IF(B206<=100,K206-K205,"") ->  | K206: =IF(B206<=100,IF(H206-I206>0,H206-I206,0),IF(B206="HB Release",H206-I206,"")) ->  | L206: =IF(B206<=100,M206-M205,"") ->  | M206: =IF(B206<=100,H206+I206,IF(B206="HB Release",H206+I206,"")) -> 
N268: =IF(B268<=100,IF(ISNA(VLOOKUP(A268,Phase1Data,16,FALSE))=TRUE,0,VLOOKUP(A268,Phase1Data,16,FALSE))+IF(ISNA(VLOOKUP(A268,Phase2Data,16,FALSE))=TRUE,0,VLOOKUP(A268,Phase2Data,16,FALSE))+IF(ISNA(VLOOKUP(A268,Phase3Data,16,FALSE))=TRUE,0,VLOOKUP(A268,Phase3Data,16,FALSE))+IF(ISNA(VLOOKUP(A268,Phase4Data,16,FALSE))=TRUE,0,VLOOKUP(A268,Phase4Data,16,FALSE))+IF(ISNA(VLOOKUP(A268,Phase5Data,16,FALSE))=TRUE,0,VLOOKUP(A268,Phase5Data,16,FALSE))+IF(ISNA(VLOOKUP(A268,Phase6Data,16,FALSE))=TRUE,0,VLOOKUP(A268,Phase6Data,16,FALSE))+IF(ISNA(VLOOKUP(A268,Phase7Data,16,FALSE))=TRUE,0,VLOOKUP(A268,Phase7Data,16,FALSE))+IF(ISNA(VLOOKUP(A268,Phase8Data,16,FALSE))=TRUE,0,VLOOKUP(A268,Phase8Data,16,FALSE))+IF(ISNA(VLOOKUP(A268,Phase9Data,16,FALSE))=TRUE,0,VLOOKUP(A268,Phase9Data,16,FALSE))+IF(ISNA(VLOOKUP(A268,Phase10Data,16,FALSE))=TRUE,0,VLOOKUP(A268,Phase10Data,16,FALSE)),"") -> 
A269: =IF(A268 = "", "", IF(BillingDay<>0, IF(B268<100,DATE(YEAR(A268),MONTH(A268)+1,DAY(A268)),IF(B268=100,MAX(HBReleaseRange),"")), IF(B268<100,(DATE(YEAR(A268),MONTH(A268)+2,1)-1),IF(B268=100,MAX(HBReleaseRange),"")))) ->  | B269: =IF(B268<100,MIN((A269-MIN(StartRange))/(MAX(CompleteRange)-MIN(StartRange))*100,100),IF(B268=100,IF(A269<>"","HB Release",""),"")) ->  | C269: =IF(B269<=100,IF(ISNA(VLOOKUP(A269,Phase1Data,3,FALSE))=TRUE,0,VLOOKUP(A269,Phase1Data,3,FALSE))+IF(ISNA(VLOOKUP(A269,Phase2Data,3,FALSE))=TRUE,0,VLOOKUP(A269,Phase2Data,3,FALSE))+IF(ISNA(VLOOKUP(A269,Phase3Data,3,FALSE))=TRUE,0,VLOOKUP(A269,Phase3Data,3,FALSE))+IF(ISNA(VLOOKUP(A269,Phase4Data,3,FALSE))=TRUE,0,VLOOKUP(A269,Phase4Data,3,FALSE))+IF(ISNA(VLOOKUP(A269,Phase5Data,3,FALSE))=TRUE,0,VLOOKUP(A269,Phase5Data,3,FALSE))+IF(ISNA(VLOOKUP(A269,Phase6Data,3,FALSE))=TRUE,0,VLOOKUP(A269,Phase6Data,3,FALSE))+IF(ISNA(VLOOKUP(A269,Phase7Data,3,FALSE))=TRUE,0,VLOOKUP(A269,Phase7Data,3,FALSE))+IF(ISNA(VLOOKUP(A269,Phase8Data,3,FALSE))=TRUE,0,VLOOKUP(A269,Phase8Data,3,FALSE))+IF(ISNA(VLOOKUP(A269,Phase9Data,3,FALSE))=TRUE,0,VLOOKUP(A269,Phase9Data,3,FALSE))+IF(ISNA(VLOOKUP(A269,Phase10Data,3,FALSE))=TRUE,0,VLOOKUP(A269,Phase10Data,3,FALSE)),IF(B269="HB Release",0,"")) ->  | D269: =IF(B269<=100,IF(ISNA(VLOOKUP(A269,Phase1Data,4,FALSE))=TRUE,0,VLOOKUP(A269,Phase1Data,4,FALSE))+IF(ISNA(VLOOKUP(A269,Phase2Data,4,FALSE))=TRUE,0,VLOOKUP(A269,Phase2Data,4,FALSE))+IF(ISNA(VLOOKUP(A269,Phase3Data,4,FALSE))=TRUE,0,VLOOKUP(A269,Phase3Data,4,FALSE))+IF(ISNA(VLOOKUP(A269,Phase4Data,4,FALSE))=TRUE,0,VLOOKUP(A269,Phase4Data,4,FALSE))+IF(ISNA(VLOOKUP(A269,Phase5Data,4,FALSE))=TRUE,0,VLOOKUP(A269,Phase5Data,4,FALSE))+IF(ISNA(VLOOKUP(A269,Phase6Data,4,FALSE))=TRUE,0,VLOOKUP(A269,Phase6Data,4,FALSE))+IF(ISNA(VLOOKUP(A269,Phase7Data,4,FALSE))=TRUE,0,VLOOKUP(A269,Phase7Data,4,FALSE))+IF(ISNA(VLOOKUP(A269,Phase8Data,4,FALSE))=TRUE,0,VLOOKUP(A269,Phase8Data,4,FALSE))+IF(ISNA(VLOOKUP(A269,Phase9Data,4,FALSE))=TRUE,0,VLOOKUP(A269,Phase9Data,4,FALSE))+IF(ISNA(VLOOKUP(A269,Phase10Data,4,FALSE))=TRUE,0,VLOOKUP(A269,Phase10Data,4,FALSE)),IF(B269="HB Release",G268*-1,"")) ->  | I269: =IF(B269<=100,IF(ISNA(VLOOKUP(A269,Phase1Data,11,FALSE))=TRUE,0,VLOOKUP(A269,Phase1Data,11,FALSE))+IF(ISNA(VLOOKUP(A269,Phase2Data,11,FALSE))=TRUE,0,VLOOKUP(A269,Phase2Data,11,FALSE))+IF(ISNA(VLOOKUP(A269,Phase3Data,11,FALSE))=TRUE,0,VLOOKUP(A269,Phase3Data,11,FALSE))+IF(ISNA(VLOOKUP(A269,Phase4Data,11,FALSE))=TRUE,0,VLOOKUP(A269,Phase4Data,11,FALSE))+IF(ISNA(VLOOKUP(A269,Phase5Data,11,FALSE))=TRUE,0,VLOOKUP(A269,Phase5Data,11,FALSE))+IF(ISNA(VLOOKUP(A269,Phase6Data,11,FALSE))=TRUE,0,VLOOKUP(A269,Phase6Data,11,FALSE))+IF(ISNA(VLOOKUP(A269,Phase7Data,11,FALSE))=TRUE,0,VLOOKUP(A269,Phase7Data,11,FALSE))+IF(ISNA(VLOOKUP(A269,Phase8Data,11,FALSE))=TRUE,0,VLOOKUP(A269,Phase8Data,11,FALSE))+IF(ISNA(VLOOKUP(A269,Phase9Data,11,FALSE))=TRUE,0,VLOOKUP(A269,Phase9Data,11,FALSE))+IF(ISNA(VLOOKUP(A269,Phase10Data,11,FALSE))=TRUE,0,VLOOKUP(A269,Phase10Data,11,FALSE)),IF(B269="HB Release",0,"")) -> 
E270: =IF(B270<=100,C270-D270,IF(B270="HB Release",C270-D270,"")) ->  | F270: =IF(A270<>"",F269+C270,"") ->  | G270: =IF(A270<>"",G269+D270,"") ->  | H270: =IF(B270<=100,F270-G270,IF(B270="HB Release",F270-G270,"")) ->  | J270: =IF(B270<=100,K270-K269,"") ->  | K270: =IF(B270<=100,IF(H270-I270>0,H270-I270,0),IF(B270="HB Release",H270-I270,"")) ->  | L270: =IF(B270<=100,M270-M269,"") ->  | M270: =IF(B270<=100,H270+I270,IF(B270="HB Release",H270+I270,"")) -> 

Sheet Phase 1
A2: ='CF Setup'!C4&" - Phase 1" -> Fox Office Building 103 - Phase 1
A3: ='CF Setup'!C5 -> Prepared by ??
A4: ='CF Setup'!C6 -> Cash Flow Report
A8: ="Period: "&(TEXT(StartDate1,"mmmm d, yyyy")&" To "&TEXT(CompleteDate1,"mmmm d, yyyy")) -> Period: February 12, 2009 To September 12, 2009 | Q8: ="Value: "&TEXT(CValue1,"$0,0") -> Value: $233,566
A9: Phase | B9: 1
C10: This Period | F10: Cumulative | L10: Late Curve | N10: Early Curve | P10: Actual Billing | R10: Expected Payment
A11: Draw Date | B11: Duration% | C11: Gross Billing | D11: Retention | E11: Net Billing | F11: Calculated Gross | G11: Adjusted Gross | H11: Gross Billing | I11: Retention | J11: Net Billing | K11: SpreadFactor | L11: Monthly | M11: Cumulative | N11: Monthly | O11: Cumulative | P11: Monthly | Q11: Cumulative | R11: Date | S11: Monthly | T11: Cummalative
A12: 2009-02-25 | B12: =MIN((A12-StartDate1)/(CompleteDate1-StartDate1)*100,100) -> 6.132075472 | C12: =IF(B12<100,H12,"") -> 4168.239682 | D12: =C12*Retention -> 416.8239682 | E12: =C12-D12 -> 3751.415714 | F12: =MIN(CValue1,113.951*(0.005457^(0.963807^B12))*CValue1/100)+MAX(BillingO1Ph1-BillingS1Ph1,0) -> 4168.239682 | H12: =IF(G12>0,G12,F12) -> 4168.239682 | I12: =H12*Retention -> 416.8239682 | J12: =H12-I12 -> 3751.415714 | K12: =(Tolerance)/4*(1-ABS(50-B12)/50)*CValue1/100 -> 0 | L12: =M12 -> 3751.415714 | M12: =IF(J12-K12>0,J12-K12,0) -> 3751.415714 | N12: =O12 -> 3751.415714 | O12: =J12+K12 -> 3751.415714 | Q12: =IF(P12>0,P12,0) -> 0 | R12: =IF(ISBLANK(A12), , A12+ PaymentDate) -> 2009-03-27 | S12: =IF(ISBLANK(P12), , P12) -> 0 | T12: =IF(Q12=0, 0, Q12) -> 0
A13: 2009-03-25 | B13: =IF(B12<100,MIN((A13-StartDate1)/(CompleteDate1-StartDate1)*100,100),IF(B12=100,IF(A13<>"","HB Release",""),"")) -> 19.33962264 | C13: =IF(B12<100,H13-H12,IF(B13="HB Release",0,"")) -> 16522.71491 | D13: =IF(B12<100,C13*Retention,IF(B13="HB Release",I12*-1,"")) -> 1652.271491 | E13: =IF(B12<100,C13-D13,IF(B13="HB Release",C13-D13,"")) -> 14870.44342 | F13: =IF(B12<100,MIN(CValue1,113.951*(0.005457^(0.963807^B13))*CValue1/100)+(MAX(BillingO1Ph1-BillingS1Ph1,0)*(1-MIN((A13-StartDate1)/(CompleteDate1-StartDate1),1))),IF(B13="HB Release",H12,"")) -> 20690.95459 | H13: =IF(G13>0,G13,F13) -> 20690.95459 | I13: =IF(B12<100,H13*Retention,IF(B13="HB Release",0,"")) -> 2069.095459 | J13: =IF(B12<100,H13-I13,IF(B13="HB Release",H13-I13,"")) -> 18621.85913 | K13: =IF(B12<100,(Tolerance)/4*(1-ABS(50-B13)/50)*CValue1/100,IF(B13="HB Release",0,"")) -> 0 | L13: =IF(B13<=100,M13-M12,"") -> 14870.44342 | M13: =IF(B13<=100,IF(J13-K13>0,J13-K13,0),IF(B13="HB Release",J13-K13,"")) -> 18621.85913 | N13: =IF(B13<=100,O13-O12,"") -> 14870.44342 | O13: =IF(B13<=100,J13+K13,IF(B13="HB Release",J13-K13,"")) -> 18621.85913 | Q13: =IF(P13>0,P13 + Q12,Q12) -> 0 | R13: =IF(ISBLANK(A13), , A13+ PaymentDate) -> 2009-04-24 | S13: =IF(ISBLANK(P13), , P13) -> 0 | T13: =IF(Q13=0, 0, Q13) -> 0
A14: 2009-04-25 | B14: 33.96226415 | C14: 39294.30693 | D14: 3929.430693 | E14: =IF(B13<100,C14-D14,IF(B14="HB Release",C14-D14,"")) -> 35364.87624 | F14: 59985.26152 | H14: 59985.26152 | I14: 5998.526152 | J14: 53986.73537 | K14: 0 | L14: 35364.87624 | M14: 53986.73537 | N14: 35364.87624 | O14: 53986.73537 | Q14: =IF(P14>0,P14 + Q13,Q13) -> 0 | R14: =IF(ISBLANK(A14), , A14+ PaymentDate) -> 2009-05-25 | S14: =IF(ISBLANK(P14), , P14) -> 0 | T14: =IF(Q14=0, 0, Q14) -> 0
A15: 2009-05-25 | B15: 48.11320755 | C15: 49931.23488 | D15: 4993.123488 | E15: 44938.11139 | F15: 109916.4964 | H15: 109916.4964 | I15: 10991.64964 | J15: 98924.84676 | K15: 0 | L15: 44938.11139 | M15: 98924.84676 | N15: 44938.11139 | O15: 98924.84676 | Q15: =IF(P15>0,P15 + Q14,Q14) -> 0 | R15: =IF(ISBLANK(A15), , A15+ PaymentDate) -> 2009-06-24 | S15: =IF(ISBLANK(P15), , P15) -> 0 | T15: =IF(Q15=0, 0, Q15) -> 0
A16: 2009-06-25 | B16: 62.73584906 | C16: 48975.63157 | D16: 4897.563157 | E16: 44078.06841 | F16: 158892.128 | H16: 158892.128 | I16: 15889.2128 | J16: 143002.9152 | K16: 0 | L16: 44078.06841 | M16: 143002.9152 | N16: 44078.06841 | O16: 143002.9152 | Q16: =IF(P16>0,P16 + Q15,Q15) -> 0 | R16: =IF(ISBLANK(A16), , A16+ PaymentDate) -> 2009-07-25 | S16: =IF(ISBLANK(P16), , P16) -> 0 | T16: =IF(Q16=0, 0, Q16) -> 0
A17: 2009-07-25 | B17: 76.88679245 | C17: 37065.1634 | D17: 3706.51634 | E17: 33358.64706 | F17: 195957.2914 | H17: 195957.2914 | I17: 19595.72914 | J17: 176361.5622 | K17: 0 | L17: 33358.64706 | M17: 176361.5622 | N17: 33358.64706 | O17: 176361.5622 | Q17: =IF(P17>0,P17 + Q16,Q16) -> 0 | R17: =IF(ISBLANK(A17), , A17+ PaymentDate) -> 2009-08-24 | S17: =IF(ISBLANK(P17), , P17) -> 0 | T17: =IF(Q17=0, 0, Q17) -> 0
A18: 2009-08-25 | B18: 91.50943396 | C18: 26664.86467 | D18: 2666.486467 | E18: 23998.3782 | F18: 222622.156 | H18: 222622.156 | I18: 22262.2156 | J18: 200359.9404 | K18: 0 | L18: 23998.3782 | M18: 200359.9404 | N18: 23998.3782 | O18: 200359.9404 | Q18: =IF(P18>0,P18 + Q17,Q17) -> 0 | R18: =IF(ISBLANK(A18), , A18+ PaymentDate) -> 2009-09-24 | S18: =IF(ISBLANK(P18), , P18) -> 0 | T18: =IF(Q18=0, 0, Q18) -> 0
A19: 2009-09-25 | B19: 100 | C19: 10943.84396 | D19: 1094.384396 | E19: 9849.459567 | F19: 233566 | H19: 233566 | I19: 23356.6 | J19: 210209.4 | K19: 0 | L19: 9849.459567 | M19: 210209.4 | N19: 9849.459567 | O19: 210209.4 | Q19: =IF(P19>0,P19 + Q18,Q18) -> 0 | R19: =IF(ISBLANK(A19), , A19+ PaymentDate) -> 2009-10-25 | S19: =IF(ISBLANK(P19), , P19) -> 0 | T19: =IF(Q19=0, 0, Q19) -> 0
A20: 2009-10-25 | B20: HB Release | C20: 0 | D20: -23356.6 | E20: 23356.6 | F20: 233566 | H20: 233566 | I20: 0 | J20: 233566 | K20: 0 | M20: 233566 | O20: 233566 | Q20: =IF(P20>0,P20 + Q19,Q19) -> 0 | R20: =IF(ISBLANK(A20), , A20+ PaymentDate) -> 2009-11-24 | S20: =IF(ISBLANK(P20), , P20) -> 0 | T20: =IF(Q20=0, 0, Q20) -> 0
B77: =IF(B76<100,MIN((A77-StartDate1)/(CompleteDate1-StartDate1)*100,100),IF(B76=100,IF(A77<>"","HB Release",""),"")) ->  | C77: =IF(B76<100,H77-H76,IF(B77="HB Release",0,"")) ->  | D77: =IF(B76<100,C77*Retention,IF(B77="HB Release",I76*-1,"")) ->  | F77: =IF(B76<100,MIN(CValue1,113.951*(0.005457^(0.963807^B77))*CValue1/100)+(MAX(BillingO1Ph1-BillingS1Ph1,0)*(1-MIN((A77-StartDate1)/(CompleteDate1-StartDate1),1))),IF(B77="HB Release",H76,"")) ->  | H77: =IF(G77>0,G77,F77) ->  | I77: =IF(B76<100,H77*Retention,IF(B77="HB Release",0,"")) ->  | J77: =IF(B76<100,H77-I77,IF(B77="HB Release",H77-I77,"")) ->  | K77: =IF(B76<100,(Tolerance)/4*(1-ABS(50-B77)/50)*CValue1/100,IF(B77="HB Release",0,"")) ->  | L77: =IF(B77<=100,M77-M76,"") ->  | M77: =IF(B77<=100,IF(J77-K77>0,J77-K77,0),IF(B77="HB Release",J77-K77,"")) ->  | N77: =IF(B77<=100,O77-O76,"") ->  | O77: =IF(B77<=100,J77+K77,IF(B77="HB Release",J77-K77,"")) -> 
E78: =IF(B77<100,C78-D78,IF(B78="HB Release",C78-D78,"")) -> 
B141: =IF(B140<100,MIN((A141-StartDate1)/(CompleteDate1-StartDate1)*100,100),IF(B140=100,IF(A141<>"","HB Release",""),"")) ->  | C141: =IF(B140<100,H141-H140,IF(B141="HB Release",0,"")) ->  | D141: =IF(B140<100,C141*Retention,IF(B141="HB Release",I140*-1,"")) ->  | F141: =IF(B140<100,MIN(CValue1,113.951*(0.005457^(0.963807^B141))*CValue1/100)+(MAX(BillingO1Ph1-BillingS1Ph1,0)*(1-MIN((A141-StartDate1)/(CompleteDate1-StartDate1),1))),IF(B141="HB Release",H140,"")) ->  | H141: =IF(G141>0,G141,F141) ->  | I141: =IF(B140<100,H141*Retention,IF(B141="HB Release",0,"")) ->  | J141: =IF(B140<100,H141-I141,IF(B141="HB Release",H141-I141,"")) ->  | K141: =IF(B140<100,(Tolerance)/4*(1-ABS(50-B141)/50)*CValue1/100,IF(B141="HB Release",0,"")) ->  | L141: =IF(B141<=100,M141-M140,"") ->  | M141: =IF(B141<=100,IF(J141-K141>0,J141-K141,0),IF(B141="HB Release",J141-K141,"")) ->  | N141: =IF(B141<=100,O141-O140,"") ->  | O141: =IF(B141<=100,J141+K141,IF(B141="HB Release",J141-K141,"")) -> 
E142: =IF(B141<100,C142-D142,IF(B142="HB Release",C142-D142,"")) -> 
B205: =IF(B204<100,MIN((A205-StartDate1)/(CompleteDate1-StartDate1)*100,100),IF(B204=100,IF(A205<>"","HB Release",""),"")) ->  | C205: =IF(B204<100,H205-H204,IF(B205="HB Release",0,"")) ->  | D205: =IF(B204<100,C205*Retention,IF(B205="HB Release",I204*-1,"")) ->  | F205: =IF(B204<100,MIN(CValue1,113.951*(0.005457^(0.963807^B205))*CValue1/100)+(MAX(BillingO1Ph1-BillingS1Ph1,0)*(1-MIN((A205-StartDate1)/(CompleteDate1-StartDate1),1))),IF(B205="HB Release",H204,"")) ->  | H205: =IF(G205>0,G205,F205) ->  | I205: =IF(B204<100,H205*Retention,IF(B205="HB Release",0,"")) ->  | J205: =IF(B204<100,H205-I205,IF(B205="HB Release",H205-I205,"")) ->  | K205: =IF(B204<100,(Tolerance)/4*(1-ABS(50-B205)/50)*CValue1/100,IF(B205="HB Release",0,"")) ->  | L205: =IF(B205<=100,M205-M204,"") ->  | M205: =IF(B205<=100,IF(J205-K205>0,J205-K205,0),IF(B205="HB Release",J205-K205,"")) ->  | N205: =IF(B205<=100,O205-O204,"") ->  | O205: =IF(B205<=100,J205+K205,IF(B205="HB Release",J205-K205,"")) -> 
E206: =IF(B205<100,C206-D206,IF(B206="HB Release",C206-D206,"")) -> 
B269: =IF(B268<100,MIN((A269-StartDate1)/(CompleteDate1-StartDate1)*100,100),IF(B268=100,IF(A269<>"","HB Release",""),"")) ->  | C269: =IF(B268<100,H269-H268,IF(B269="HB Release",0,"")) ->  | D269: =IF(B268<100,C269*Retention,IF(B269="HB Release",I268*-1,"")) ->  | F269: =IF(B268<100,MIN(CValue1,113.951*(0.005457^(0.963807^B269))*CValue1/100)+(MAX(BillingO1Ph1-BillingS1Ph1,0)*(1-MIN((A269-StartDate1)/(CompleteDate1-StartDate1),1))),IF(B269="HB Release",H268,"")) ->  | H269: =IF(G269>0,G269,F269) ->  | I269: =IF(B268<100,H269*Retention,IF(B269="HB Release",0,"")) ->  | J269: =IF(B268<100,H269-I269,IF(B269="HB Release",H269-I269,"")) ->  | K269: =IF(B268<100,(Tolerance)/4*(1-ABS(50-B269)/50)*CValue1/100,IF(B269="HB Release",0,"")) ->  | L269: =IF(B269<=100,M269-M268,"") ->  | M269: =IF(B269<=100,IF(J269-K269>0,J269-K269,0),IF(B269="HB Release",J269-K269,"")) ->  | N269: =IF(B269<=100,O269-O268,"") ->  | O269: =IF(B269<=100,J269+K269,IF(B269="HB Release",J269-K269,"")) -> 
E270: =IF(B269<100,C270-D270,IF(B270="HB Release",C270-D270,"")) -> 

Sheet Phase 2
A2: ='CF Setup'!C4&" - Phase 2" -> Fox Office Building 103 - Phase 2
A3: ='CF Setup'!C5 -> Prepared by ??
A4: ='CF Setup'!C6 -> Cash Flow Report
A8: ="Period: "&(TEXT(StartDate2,"mmmm d, yyyy")&" To "&TEXT(CompleteDate2,"mmmm d, yyyy")) -> Period: September 12, 2009 To April 12, 2011 | Q8: ="Value: "&TEXT(CValue2,"$0,0") -> Value: $47,081,460
A9: Phase | B9: 2
C10: This Period | F10: Cumulative | L10: Late Curve | N10: Early Curve | P10: Actual Billing | R10: Expected Payment
A11: Draw Date | B11: Duration% | C11: Gross Billing | D11: Retention | E11: Net Billing | F11: Calculated Gross | G11: Adjusted Gross | H11: Gross Billing | I11: Retention | J11: Net Billing | K11: SpreadFactor | L11: Monthly | M11: Cumulative | N11: Monthly | O11: Cumulative | P11: Monthly | Q11: Cumulative | R11: Date | S11: Monthly | T11: Cummalative
A12: 2009-09-25 | B12: =MIN((A12-StartDate2)/(CompleteDate2-StartDate2)*100,100) -> 2.253032929 | C12: =IF(B12<100,H12,"") -> 443494.5233 | D12: =C12*Retention -> 44349.45233 | E12: =C12-D12 -> 399145.071 | F12: =MIN(CValue2,113.951*(0.005457^(0.963807^B12))*CValue2/100)+MAX(BillingO1Ph2-BillingS1Ph2,0) -> 443494.5233 | H12: =IF(G12>0,G12,F12) -> 443494.5233 | I12: =H12*Retention -> 44349.45233 | J12: =H12-I12 -> 399145.071 | K12: =(Tolerance)/4*(1-ABS(50-B12)/50)*CValue2/100 -> 0 | L12: =M12 -> 399145.071 | M12: =IF(J12-K12>0,J12-K12,0) -> 399145.071 | N12: =O12 -> 399145.071 | O12: =J12+K12 -> 399145.071 | Q12: =IF(P12>0,P12,0) -> 0 | R12: =IF(ISBLANK(A12), , A12+ PaymentDate) -> 2009-10-25 | S12: =IF(ISBLANK(P12), , P12) -> 0 | T12: =IF(Q12=0, 0, Q12) -> 0
A13: 2009-10-25 | B13: =IF(B12<100,MIN((A13-StartDate2)/(CompleteDate2-StartDate2)*100,100),IF(B12=100,IF(A13<>"","HB Release",""),"")) -> 7.452339688 | C13: =IF(B12<100,H13-H12,IF(B13="HB Release",0,"")) -> 580147.1537 | D13: =IF(B12<100,C13*Retention,IF(B13="HB Release",I12*-1,"")) -> 58014.71537 | E13: =IF(B12<100,C13-D13,IF(B13="HB Release",C13-D13,"")) -> 522132.4383 | F13: =IF(B12<100,MIN(CValue2,113.951*(0.005457^(0.963807^B13))*CValue2/100)+(MAX(BillingO1Ph2-BillingS1Ph2,0)*(1-MIN((A13-StartDate2)/(CompleteDate2-StartDate2),1))),IF(B13="HB Release",H12,"")) -> 1023641.677 | H13: =IF(G13>0,G13,F13) -> 1023641.677 | I13: =IF(B12<100,H13*Retention,IF(B13="HB Release",0,"")) -> 102364.1677 | J13: =IF(B12<100,H13-I13,IF(B13="HB Release",H13-I13,"")) -> 921277.5093 | K13: =IF(B12<100,(Tolerance)/4*(1-ABS(50-B13)/50)*CValue2/100,IF(B13="HB Release",0,"")) -> 0 | L13: =IF(B13<=100,M13-M12,"") -> 522132.4383 | M13: =IF(B13<=100,IF(J13-K13>0,J13-K13,0),IF(B13="HB Release",J13-K13,"")) -> 921277.5093 | N13: =IF(B13<=100,O13-O12,"") -> 522132.4383 | O13: =IF(B13<=100,J13+K13,IF(B13="HB Release",J13-K13,"")) -> 921277.5093 | Q13: =IF(P13>0,P13 + Q12,Q12) -> 0 | R13: =IF(ISBLANK(A13), , A13+ PaymentDate) -> 2009-11-24 | S13: =IF(ISBLANK(P13), , P13) -> 0 | T13: =IF(Q13=0, 0, Q13) -> 0
A14: 2009-11-25 | B14: 12.82495667 | C14: =IF(B13<100,H14-H13,IF(B14="HB Release",0,"")) -> 1061273.809 | D14: 106127.3809 | E14: =IF(B13<100,C14-D14,IF(B14="HB Release",C14-D14,"")) -> 955146.4284 | F14: 2084915.486 | H14: 2084915.486 | I14: 208491.5486 | J14: =IF(B13<100,H14-I14,IF(B14="HB Release",H14-I14,"")) -> 1876423.938 | K14: 0 | L14: =IF(B14<=100,M14-M13,"") -> 955146.4284 | M14: =IF(B14<=100,IF(J14-K14>0,J14-K14,0),IF(B14="HB Release",J14-K14,"")) -> 1876423.938 | N14: =IF(B14<=100,O14-O13,"") -> 955146.4284 | O14: =IF(B14<=100,J14+K14,IF(B14="HB Release",J14-K14,"")) -> 1876423.938 | Q14: =IF(P14>0,P14 + Q13,Q13) -> 0 | R14: =IF(ISBLANK(A14), , A14+ PaymentDate) -> 2009-12-25 | S14: =IF(ISBLANK(P14), , P14) -> 0 | T14: =IF(Q14=0, 0, Q14) -> 0
A15: 2009-12-25 | B15: 18.02426343 | C15: 1588782.24 | D15: 158878.224 | E15: 1429904.016 | F15: 3673697.726 | H15: 3673697.726 | I15: 367369.7726 | J15: 3306327.954 | K15: 0 | L15: 1429904.016 | M15: 3306327.954 | N15: 1429904.016 | O15: 3306327.954 | Q15: =IF(P15>0,P15 + Q14,Q14) -> 0 | R15: =IF(ISBLANK(A15), , A15+ PaymentDate) -> 2010-01-24 | S15: =IF(ISBLANK(P15), , P15) -> 0 | T15: =IF(Q15=0, 0, Q15) -> 0
A16: 2010-01-25 | B16: 23.39688042 | C16: 2273756.418 | D16: 227375.6418 | E16: 2046380.777 | F16: 5947454.145 | H16: 5947454.145 | I16: 594745.4145 | J16: 5352708.73 | K16: 0 | L16: 2046380.777 | M16: 5352708.73 | N16: 2046380.777 | O16: 5352708.73 | Q16: =IF(P16>0,P16 + Q15,Q15) -> 0 | R16: =IF(ISBLANK(A16), , A16+ PaymentDate) -> 2010-02-24 | S16: =IF(ISBLANK(P16), , P16) -> 0 | T16: =IF(Q16=0, 0, Q16) -> 0
A17: 2010-02-25 | B17: 28.7694974 | C17: 2882640.374 | D17: 288264.0374 | E17: 2594376.336 | F17: 8830094.518 | H17: 8830094.518 | I17: 883009.4518 | J17: 7947085.067 | K17: 0 | L17: 2594376.336 | M17: 7947085.067 | N17: 2594376.336 | O17: 7947085.067 | Q17: =IF(P17>0,P17 + Q16,Q16) -> 0 | R17: =IF(ISBLANK(A17), , A17+ PaymentDate) -> 2010-03-27 | S17: =IF(ISBLANK(P17), , P17) -> 0 | T17: =IF(Q17=0, 0, Q17) -> 0
A18: 2010-03-25 | B18: 33.62218371 | C18: 3036372.584 | D18: 303637.2584 | E18: 2732735.325 | F18: 11866467.1 | H18: 11866467.1 | I18: 1186646.71 | J18: 10679820.39 | K18: 0 | L18: 2732735.325 | M18: 10679820.39 | N18: 2732735.325 | O18: 10679820.39 | Q18: =IF(P18>0,P18 + Q17,Q17) -> 0 | R18: =IF(ISBLANK(A18), , A18+ PaymentDate) -> 2010-04-24 | S18: =IF(ISBLANK(P18), , P18) -> 0 | T18: =IF(Q18=0, 0, Q18) -> 0
A19: 2010-04-25 | B19: 38.99480069 | C19: 3695134.128 | D19: 369513.4128 | E19: 3325620.715 | F19: 15561601.23 | H19: 15561601.23 | I19: 1556160.123 | J19: 14005441.11 | K19: 0 | L19: 3325620.715 | M19: 14005441.11 | N19: 3325620.715 | O19: 14005441.11 | Q19: =IF(P19>0,P19 + Q18,Q18) -> 0 | R19: =IF(ISBLANK(A19), , A19+ PaymentDate) -> 2010-05-25 | S19: =IF(ISBLANK(P19), , P19) -> 0 | T19: =IF(Q19=0, 0, Q19) -> 0
A20: 2010-05-25 | B20: 44.19410745 | C20: 3749502.517 | D20: 374950.2517 | E20: 3374552.265 | F20: 19311103.75 | H20: 19311103.75 | I20: 1931110.375 | J20: 17379993.37 | K20: 0 | L20: 3374552.265 | M20: 17379993.37 | N20: 3374552.265 | O20: 17379993.37 | Q20: =IF(P20>0,P20 + Q19,Q19) -> 0 | R20: =IF(ISBLANK(A20), , A20+ PaymentDate) -> 2010-06-24 | S20: =IF(ISBLANK(P20), , P20) -> 0 | T20: =IF(Q20=0, 0, Q20) -> 0
A21: 2010-06-25 | B21: 49.56672444 | C21: 3891717.834 | D21: 389171.7834 | E21: 3502546.051 | F21: 23202821.58 | H21: 23202821.58 | I21: 2320282.158 | J21: 20882539.42 | K21: 0 | L21: 3502546.051 | M21: 20882539.42 | N21: 3502546.051 | O21: 20882539.42 | Q21: =IF(P21>0,P21 + Q20,Q20) -> 0 | R21: =IF(ISBLANK(A21), , A21+ PaymentDate) -> 2010-07-25 | S21: =IF(ISBLANK(P21), , P21) -> 0 | T21: =IF(Q21=0, 0, Q21) -> 0
A22: 2010-07-25 | B22: 54.7660312 | C22: 3652738.007 | D22: 365273.8007 | E22: 3287464.206 | F22: 26855559.59 | H22: 26855559.59 | I22: 2685555.959 | J22: 24170003.63 | K22: 0 | L22: 3287464.206 | M22: 24170003.63 | N22: 3287464.206 | O22: 24170003.63 | Q22: =IF(P22>0,P22 + Q21,Q21) -> 0 | R22: =IF(ISBLANK(A22), , A22+ PaymentDate) -> 2010-08-24 | S22: =IF(ISBLANK(P22), , P22) -> 0 | T22: =IF(Q22=0, 0, Q22) -> 0
A23: 2010-08-25 | B23: 60.13864818 | C23: 3555620.398 | D23: 355562.0398 | E23: 3200058.358 | F23: 30411179.99 | H23: 30411179.99 | I23: 3041117.999 | J23: 27370061.99 | K23: 0 | L23: 3200058.358 | M23: 27370061.99 | N23: 3200058.358 | O23: 27370061.99 | Q23: =IF(P23>0,P23 + Q22,Q22) -> 0 | R23: =IF(ISBLANK(A23), , A23+ PaymentDate) -> 2010-09-24 | S23: =IF(ISBLANK(P23), , P23) -> 0 | T23: =IF(Q23=0, 0, Q23) -> 0
A24: 2010-09-25 | B24: 65.51126516 | C24: 3265551.876 | D24: 326555.1876 | E24: 2938996.688 | F24: 33676731.86 | H24: 33676731.86 | I24: 3367673.186 | J24: 30309058.68 | K24: 0 | L24: 2938996.688 | M24: 30309058.68 | N24: 2938996.688 | O24: 30309058.68 | Q24: =IF(P24>0,P24 + Q23,Q23) -> 0 | R24: =IF(ISBLANK(A24), , A24+ PaymentDate) -> 2010-10-25 | S24: =IF(ISBLANK(P24), , P24) -> 0 | T24: =IF(Q24=0, 0, Q24) -> 0
A25: 2010-10-25 | B25: 70.71057192 | C25: 2849442.261 | D25: 284944.2261 | E25: 2564498.035 | F25: 36526174.12 | H25: 36526174.12 | I25: 3652617.412 | J25: 32873556.71 | K25: 0 | L25: 2564498.035 | M25: 32873556.71 | N25: 2564498.035 | O25: 32873556.71 | Q25: =IF(P25>0,P25 + Q24,Q24) -> 0 | R25: =IF(ISBLANK(A25), , A25+ PaymentDate) -> 2010-11-24 | S25: =IF(ISBLANK(P25), , P25) -> 0 | T25: =IF(Q25=0, 0, Q25) -> 0
A26: 2010-11-25 | B26: 76.08318891 | C26: 2612289.906 | D26: 261228.9906 | E26: 2351060.916 | F26: 39138464.03 | H26: 39138464.03 | I26: 3913846.403 | J26: 35224617.63 | K26: 0 | L26: 2351060.916 | M26: 35224617.63 | N26: 2351060.916 | O26: 35224617.63 | Q26: =IF(P26>0,P26 + Q25,Q25) -> 0 | R26: =IF(ISBLANK(A26), , A26+ PaymentDate) -> 2010-12-25 | S26: =IF(ISBLANK(P26), , P26) -> 0 | T26: =IF(Q26=0, 0, Q26) -> 0
A27: 2010-12-25 | B27: 81.28249567 | C27: 2213201.099 | D27: 221320.1099 | E27: 1991880.989 | F27: 41351665.13 | H27: 41351665.13 | I27: 4135166.513 | J27: 37216498.62 | K27: 0 | L27: 1991880.989 | M27: 37216498.62 | N27: 1991880.989 | O27: 37216498.62 | Q27: =IF(P27>0,P27 + Q26,Q26) -> 0 | R27: =IF(ISBLANK(A27), , A27+ PaymentDate) -> 2011-01-24 | S27: =IF(ISBLANK(P27), , P27) -> 0 | T27: =IF(Q27=0, 0, Q27) -> 0
A28: 2011-01-25 | B28: 86.65511265 | C28: 1980461.765 | D28: 198046.1765 | E28: 1782415.588 | F28: 43332126.89 | H28: 43332126.89 | I28: 4333212.689 | J28: 38998914.2 | K28: 0 | L28: 1782415.588 | M28: 38998914.2 | N28: 1782415.588 | O28: 38998914.2 | Q28: =IF(P28>0,P28 + Q27,Q27) -> 0 | R28: =IF(ISBLANK(A28), , A28+ PaymentDate) -> 2011-02-24 | S28: =IF(ISBLANK(P28), , P28) -> 0 | T28: =IF(Q28=0, 0, Q28) -> 0
A29: 2011-02-25 | B29: 92.02772964 | C29: 1695235.642 | D29: 169523.5642 | E29: 1525712.077 | F29: 45027362.54 | H29: 45027362.54 | I29: 4502736.254 | J29: 40524626.28 | K29: 0 | L29: 1525712.077 | M29: 40524626.28 | N29: 1525712.077 | O29: 40524626.28 | Q29: =IF(P29>0,P29 + Q28,Q28) -> 0 | R29: =IF(ISBLANK(A29), , A29+ PaymentDate) -> 2011-03-27 | S29: =IF(ISBLANK(P29), , P29) -> 0 | T29: =IF(Q29=0, 0, Q29) -> 0
A30: 2011-03-25 | B30: 96.88041594 | C30: 1310980.064 | D30: 131098.0064 | E30: 1179882.058 | F30: 46338342.6 | H30: 46338342.6 | I30: 4633834.26 | J30: 41704508.34 | K30: 0 | L30: 1179882.058 | M30: 41704508.34 | N30: 1179882.058 | O30: 41704508.34 | Q30: =IF(P30>0,P30 + Q29,Q29) -> 0 | R30: =IF(ISBLANK(A30), , A30+ PaymentDate) -> 2011-04-24 | S30: =IF(ISBLANK(P30), , P30) -> 0 | T30: =IF(Q30=0, 0, Q30) -> 0
A31: 2011-04-25 | B31: 100 | C31: 743117.4008 | D31: 74311.74008 | E31: 668805.6607 | F31: 47081460 | H31: 47081460 | I31: 4708146 | J31: 42373314 | K31: 0 | L31: 668805.6607 | M31: 42373314 | N31: 668805.6607 | O31: 42373314 | Q31: =IF(P31>0,P31 + Q30,Q30) -> 0 | R31: =IF(ISBLANK(A31), , A31+ PaymentDate) -> 2011-05-25 | S31: =IF(ISBLANK(P31), , P31) -> 0 | T31: =IF(Q31=0, 0, Q31) -> 0
A32: 2011-05-25 | B32: HB Release | C32: 0 | D32: -4708146 | E32: 4708146 | F32: 47081460 | H32: 47081460 | I32: 0 | J32: 47081460 | K32: 0 | M32: 47081460 | O32: 47081460 | Q32: =IF(P32>0,P32 + Q31,Q31) -> 0 | R32: =IF(ISBLANK(A32), , A32+ PaymentDate) -> 2011-06-24 | S32: =IF(ISBLANK(P32), , P32) -> 0 | T32: =IF(Q32=0, 0, Q32) -> 0
B77: =IF(B76<100,MIN((A77-StartDate2)/(CompleteDate2-StartDate2)*100,100),IF(B76=100,IF(A77<>"","HB Release",""),"")) ->  | D77: =IF(B76<100,C77*Retention,IF(B77="HB Release",I76*-1,"")) ->  | F77: =IF(B76<100,MIN(CValue2,113.951*(0.005457^(0.963807^B77))*CValue2/100)+(MAX(BillingO1Ph2-BillingS1Ph2,0)*(1-MIN((A77-StartDate2)/(CompleteDate2-StartDate2),1))),IF(B77="HB Release",H76,"")) ->  | H77: =IF(G77>0,G77,F77) ->  | I77: =IF(B76<100,H77*Retention,IF(B77="HB Release",0,"")) ->  | K77: =IF(B76<100,(Tolerance)/4*(1-ABS(50-B77)/50)*CValue2/100,IF(B77="HB Release",0,"")) -> 
C78: =IF(B77<100,H78-H77,IF(B78="HB Release",0,"")) ->  | E78: =IF(B77<100,C78-D78,IF(B78="HB Release",C78-D78,"")) ->  | J78: =IF(B77<100,H78-I78,IF(B78="HB Release",H78-I78,"")) ->  | L78: =IF(B78<=100,M78-M77,"") ->  | M78: =IF(B78<=100,IF(J78-K78>0,J78-K78,0),IF(B78="HB Release",J78-K78,"")) ->  | N78: =IF(B78<=100,O78-O77,"") ->  | O78: =IF(B78<=100,J78+K78,IF(B78="HB Release",J78-K78,"")) -> 
B141: =IF(B140<100,MIN((A141-StartDate2)/(CompleteDate2-StartDate2)*100,100),IF(B140=100,IF(A141<>"","HB Release",""),"")) ->  | D141: =IF(B140<100,C141*Retention,IF(B141="HB Release",I140*-1,"")) ->  | F141: =IF(B140<100,MIN(CValue2,113.951*(0.005457^(0.963807^B141))*CValue2/100)+(MAX(BillingO1Ph2-BillingS1Ph2,0)*(1-MIN((A141-StartDate2)/(CompleteDate2-StartDate2),1))),IF(B141="HB Release",H140,"")) ->  | H141: =IF(G141>0,G141,F141) ->  | I141: =IF(B140<100,H141*Retention,IF(B141="HB Release",0,"")) ->  | K141: =IF(B140<100,(Tolerance)/4*(1-ABS(50-B141)/50)*CValue2/100,IF(B141="HB Release",0,"")) -> 
C142: =IF(B141<100,H142-H141,IF(B142="HB Release",0,"")) ->  | E142: =IF(B141<100,C142-D142,IF(B142="HB Release",C142-D142,"")) ->  | J142: =IF(B141<100,H142-I142,IF(B142="HB Release",H142-I142,"")) ->  | L142: =IF(B142<=100,M142-M141,"") ->  | M142: =IF(B142<=100,IF(J142-K142>0,J142-K142,0),IF(B142="HB Release",J142-K142,"")) ->  | N142: =IF(B142<=100,O142-O141,"") ->  | O142: =IF(B142<=100,J142+K142,IF(B142="HB Release",J142-K142,"")) -> 
B205: =IF(B204<100,MIN((A205-StartDate2)/(CompleteDate2-StartDate2)*100,100),IF(B204=100,IF(A205<>"","HB Release",""),"")) ->  | D205: =IF(B204<100,C205*Retention,IF(B205="HB Release",I204*-1,"")) ->  | F205: =IF(B204<100,MIN(CValue2,113.951*(0.005457^(0.963807^B205))*CValue2/100)+(MAX(BillingO1Ph2-BillingS1Ph2,0)*(1-MIN((A205-StartDate2)/(CompleteDate2-StartDate2),1))),IF(B205="HB Release",H204,"")) ->  | H205: =IF(G205>0,G205,F205) ->  | I205: =IF(B204<100,H205*Retention,IF(B205="HB Release",0,"")) ->  | K205: =IF(B204<100,(Tolerance)/4*(1-ABS(50-B205)/50)*CValue2/100,IF(B205="HB Release",0,"")) -> 
C206: =IF(B205<100,H206-H205,IF(B206="HB Release",0,"")) ->  | E206: =IF(B205<100,C206-D206,IF(B206="HB Release",C206-D206,"")) ->  | J206: =IF(B205<100,H206-I206,IF(B206="HB Release",H206-I206,"")) ->  | L206: =IF(B206<=100,M206-M205,"") ->  | M206: =IF(B206<=100,IF(J206-K206>0,J206-K206,0),IF(B206="HB Release",J206-K206,"")) ->  | N206: =IF(B206<=100,O206-O205,"") ->  | O206: =IF(B206<=100,J206+K206,IF(B206="HB Release",J206-K206,"")) -> 
B269: =IF(B268<100,MIN((A269-StartDate2)/(CompleteDate2-StartDate2)*100,100),IF(B268=100,IF(A269<>"","HB Release",""),"")) ->  | D269: =IF(B268<100,C269*Retention,IF(B269="HB Release",I268*-1,"")) ->  | F269: =IF(B268<100,MIN(CValue2,113.951*(0.005457^(0.963807^B269))*CValue2/100)+(MAX(BillingO1Ph2-BillingS1Ph2,0)*(1-MIN((A269-StartDate2)/(CompleteDate2-StartDate2),1))),IF(B269="HB Release",H268,"")) ->  | H269: =IF(G269>0,G269,F269) ->  | I269: =IF(B268<100,H269*Retention,IF(B269="HB Release",0,"")) ->  | K269: =IF(B268<100,(Tolerance)/4*(1-ABS(50-B269)/50)*CValue2/100,IF(B269="HB Release",0,"")) -> 
C270: =IF(B269<100,H270-H269,IF(B270="HB Release",0,"")) ->  | E270: =IF(B269<100,C270-D270,IF(B270="HB Release",C270-D270,"")) ->  | J270: =IF(B269<100,H270-I270,IF(B270="HB Release",H270-I270,"")) ->  | L270: =IF(B270<=100,M270-M269,"") ->  | M270: =IF(B270<=100,IF(J270-K270>0,J270-K270,0),IF(B270="HB Release",J270-K270,"")) ->  | N270: =IF(B270<=100,O270-O269,"") ->  | O270: =IF(B270<=100,J270+K270,IF(B270="HB Release",J270-K270,"")) -> 

Sheet Phase 3 (hidden)
A2: ='CF Setup'!C4&" - Phase 3" -> Fox Office Building 103 - Phase 3
A3: ='CF Setup'!C5 -> Prepared by ??
A4: ='CF Setup'!C6 -> Cash Flow Report
A8: ="Period: "&(TEXT(StartDate3,"mmmm d, yyyy")&" To "&TEXT(CompleteDate3,"mmmm d, yyyy")) -> Period: January 0, 1900 To January 0, 1900 | Q8: ="Value: "&TEXT(CValue3,"$0,0") -> Value: $00
A9: Phase | B9: 3
C10: This Period | F10: Cumulative | L10: Late Curve | N10: Early Curve | P10: Actual Billing | R10: Expected Payment
A11: Draw Date | B11: Duration% | C11: Gross Billing | D11: Retention | E11: Net Billing | F11: Calculated Gross | G11: Adjusted Gross | H11: Gross Billing | I11: Retention | J11: Net Billing | K11: SpreadFactor | L11: Monthly | M11: Cumulative | N11: Monthly | O11: Cumulative | P11: Monthly | Q11: Cumulative | R11: Date | S11: Monthly | T11: Cummalative
B12: =MIN((A12-StartDate3)/(CompleteDate3-StartDate3)*100,100) ->  | C12: =IF(B12<100,H12,"") ->  | D12: =C12*Retention ->  | E12: =C12-D12 ->  | F12: =MIN(CValue3,113.951*(0.005457^(0.963807^B12))*CValue3/100)+MAX(BillingO1Ph3-BillingS1Ph3,0) ->  | H12: =IF(G12>0,G12,F12) ->  | I12: =H12*Retention ->  | J12: =H12-I12 ->  | K12: =(Tolerance)/4*(1-ABS(50-B12)/50)*CValue3/100 ->  | L12: =M12 ->  | M12: =IF(J12-K12>0,J12-K12,0) ->  | N12: =O12 ->  | O12: =J12+K12 ->  | Q12: =IF(P12>0,P12,0) -> 0
B13: =IF(B12<100,MIN((A13-StartDate3)/(CompleteDate3-StartDate3)*100,100),IF(B12=100,IF(A13<>"","HB Release",""),"")) ->  | C13: =IF(B12<100,H13-H12,IF(B13="HB Release",0,"")) ->  | D13: =IF(B12<100,C13*Retention,IF(B13="HB Release",I12*-1,"")) ->  | E13: =IF(B12<100,C13-D13,IF(B13="HB Release",C13-D13,"")) ->  | F13: =IF(B12<100,MIN(CValue3,113.951*(0.005457^(0.963807^B13))*CValue3/100)+(MAX(BillingO1Ph3-BillingS1Ph3,0)*(1-MIN((A13-StartDate3)/(CompleteDate3-StartDate3),1))),IF(B13="HB Release",H12,"")) ->  | H13: =IF(G13>0,G13,F13) ->  | I13: =IF(B12<100,H13*Retention,IF(B13="HB Release",0,"")) ->  | J13: =IF(B12<100,H13-I13,IF(B13="HB Release",H13-I13,"")) ->  | K13: =IF(B12<100,(Tolerance)/4*(1-ABS(50-B13)/50)*CValue3/100,IF(B13="HB Release",0,"")) ->  | L13: =IF(B13<=100,M13-M12,"") ->  | M13: =IF(B13<=100,IF(J13-K13>0,J13-K13,0),IF(B13="HB Release",J13-K13,"")) ->  | N13: =IF(B13<=100,O13-O12,"") ->  | O13: =IF(B13<=100,J13+K13,IF(B13="HB Release",J13-K13,"")) ->  | Q13: =IF(P13>0,P13 + Q12,Q12) -> 0
C14: =IF(B13<100,H14-H13,IF(B14="HB Release",0,"")) ->  | E14: =IF(B13<100,C14-D14,IF(B14="HB Release",C14-D14,"")) ->  | J14: =IF(B13<100,H14-I14,IF(B14="HB Release",H14-I14,"")) ->  | Q14: 0
Q15: 0
Q16: 0
Q17: 0
Q18: 0
Q19: 0
B77: =IF(B76<100,MIN((A77-StartDate3)/(CompleteDate3-StartDate3)*100,100),IF(B76=100,IF(A77<>"","HB Release",""),"")) ->  | D77: =IF(B76<100,C77*Retention,IF(B77="HB Release",I76*-1,"")) ->  | F77: =IF(B76<100,MIN(CValue3,113.951*(0.005457^(0.963807^B77))*CValue3/100)+(MAX(BillingO1Ph3-BillingS1Ph3,0)*(1-MIN((A77-StartDate3)/(CompleteDate3-StartDate3),1))),IF(B77="HB Release",H76,"")) ->  | H77: =IF(G77>0,G77,F77) ->  | I77: =IF(B76<100,H77*Retention,IF(B77="HB Release",0,"")) ->  | K77: =IF(B76<100,(Tolerance)/4*(1-ABS(50-B77)/50)*CValue3/100,IF(B77="HB Release",0,"")) ->  | L77: =IF(B77<=100,M77-M76,"") ->  | M77: =IF(B77<=100,IF(J77-K77>0,J77-K77,0),IF(B77="HB Release",J77-K77,"")) ->  | N77: =IF(B77<=100,O77-O76,"") ->  | O77: =IF(B77<=100,J77+K77,IF(B77="HB Release",J77-K77,"")) -> 
C78: =IF(B77<100,H78-H77,IF(B78="HB Release",0,"")) ->  | E78: =IF(B77<100,C78-D78,IF(B78="HB Release",C78-D78,"")) ->  | J78: =IF(B77<100,H78-I78,IF(B78="HB Release",H78-I78,"")) -> 
B141: =IF(B140<100,MIN((A141-StartDate3)/(CompleteDate3-StartDate3)*100,100),IF(B140=100,IF(A141<>"","HB Release",""),"")) ->  | D141: =IF(B140<100,C141*Retention,IF(B141="HB Release",I140*-1,"")) ->  | F141: =IF(B140<100,MIN(CValue3,113.951*(0.005457^(0.963807^B141))*CValue3/100)+(MAX(BillingO1Ph3-BillingS1Ph3,0)*(1-MIN((A141-StartDate3)/(CompleteDate3-StartDate3),1))),IF(B141="HB Release",H140,"")) ->  | H141: =IF(G141>0,G141,F141) ->  | I141: =IF(B140<100,H141*Retention,IF(B141="HB Release",0,"")) ->  | K141: =IF(B140<100,(Tolerance)/4*(1-ABS(50-B141)/50)*CValue3/100,IF(B141="HB Release",0,"")) ->  | L141: =IF(B141<=100,M141-M140,"") ->  | M141: =IF(B141<=100,IF(J141-K141>0,J141-K141,0),IF(B141="HB Release",J141-K141,"")) ->  | N141: =IF(B141<=100,O141-O140,"") ->  | O141: =IF(B141<=100,J141+K141,IF(B141="HB Release",J141-K141,"")) -> 
C142: =IF(B141<100,H142-H141,IF(B142="HB Release",0,"")) ->  | E142: =IF(B141<100,C142-D142,IF(B142="HB Release",C142-D142,"")) ->  | J142: =IF(B141<100,H142-I142,IF(B142="HB Release",H142-I142,"")) -> 
B205: =IF(B204<100,MIN((A205-StartDate3)/(CompleteDate3-StartDate3)*100,100),IF(B204=100,IF(A205<>"","HB Release",""),"")) ->  | D205: =IF(B204<100,C205*Retention,IF(B205="HB Release",I204*-1,"")) ->  | F205: =IF(B204<100,MIN(CValue3,113.951*(0.005457^(0.963807^B205))*CValue3/100)+(MAX(BillingO1Ph3-BillingS1Ph3,0)*(1-MIN((A205-StartDate3)/(CompleteDate3-StartDate3),1))),IF(B205="HB Release",H204,"")) ->  | H205: =IF(G205>0,G205,F205) ->  | I205: =IF(B204<100,H205*Retention,IF(B205="HB Release",0,"")) ->  | K205: =IF(B204<100,(Tolerance)/4*(1-ABS(50-B205)/50)*CValue3/100,IF(B205="HB Release",0,"")) ->  | L205: =IF(B205<=100,M205-M204,"") ->  | M205: =IF(B205<=100,IF(J205-K205>0,J205-K205,0),IF(B205="HB Release",J205-K205,"")) ->  | N205: =IF(B205<=100,O205-O204,"") ->  | O205: =IF(B205<=100,J205+K205,IF(B205="HB Release",J205-K205,"")) -> 
C206: =IF(B205<100,H206-H205,IF(B206="HB Release",0,"")) ->  | E206: =IF(B205<100,C206-D206,IF(B206="HB Release",C206-D206,"")) ->  | J206: =IF(B205<100,H206-I206,IF(B206="HB Release",H206-I206,"")) -> 
B269: =IF(B268<100,MIN((A269-StartDate3)/(CompleteDate3-StartDate3)*100,100),IF(B268=100,IF(A269<>"","HB Release",""),"")) ->  | D269: =IF(B268<100,C269*Retention,IF(B269="HB Release",I268*-1,"")) ->  | F269: =IF(B268<100,MIN(CValue3,113.951*(0.005457^(0.963807^B269))*CValue3/100)+(MAX(BillingO1Ph3-BillingS1Ph3,0)*(1-MIN((A269-StartDate3)/(CompleteDate3-StartDate3),1))),IF(B269="HB Release",H268,"")) ->  | H269: =IF(G269>0,G269,F269) ->  | I269: =IF(B268<100,H269*Retention,IF(B269="HB Release",0,"")) ->  | K269: =IF(B268<100,(Tolerance)/4*(1-ABS(50-B269)/50)*CValue3/100,IF(B269="HB Release",0,"")) ->  | L269: =IF(B269<=100,M269-M268,"") ->  | M269: =IF(B269<=100,IF(J269-K269>0,J269-K269,0),IF(B269="HB Release",J269-K269,"")) ->  | N269: =IF(B269<=100,O269-O268,"") ->  | O269: =IF(B269<=100,J269+K269,IF(B269="HB Release",J269-K269,"")) -> 
C270: =IF(B269<100,H270-H269,IF(B270="HB Release",0,"")) ->  | E270: =IF(B269<100,C270-D270,IF(B270="HB Release",C270-D270,"")) ->  | J270: =IF(B269<100,H270-I270,IF(B270="HB Release",H270-I270,"")) -> 

Sheet Phase 4 (hidden)
A2: ='CF Setup'!C4&" - Phase 4" -> Fox Office Building 103 - Phase 4
A3: ='CF Setup'!C5 -> Prepared by ??
A4: ='CF Setup'!C6 -> Cash Flow Report
A8: ="Period: "&(TEXT(StartDate4,"mmmm d, yyyy")&" To "&TEXT(CompleteDate4,"mmmm d, yyyy")) -> Period: January 0, 1900 To January 0, 1900 | Q8: ="Value: "&TEXT(CValue4,"$0,0") -> Value: $00
A9: Phase | B9: 4
C10: This Period | F10: Cumulative | L10: Late Curve | N10: Early Curve | P10: Actual Billing | R10: Expected Payment
A11: Draw Date | B11: Duration% | C11: Gross Billing | D11: Retention | E11: Net Billing | F11: Calculated Gross | G11: Adjusted Gross | H11: Gross Billing | I11: Retention | J11: Net Billing | K11: SpreadFactor | L11: Monthly | M11: Cumulative | N11: Monthly | O11: Cumulative | P11: Monthly | Q11: Cumulative | R11: Date | S11: Monthly | T11: Cummalative
B12: =MIN((A12-StartDate4)/(CompleteDate4-StartDate4)*100,100) ->  | C12: =IF(B12<100,H12,"") ->  | D12: =C12*Retention ->  | E12: =C12-D12 ->  | F12: =MIN(CValue4,113.951*(0.005457^(0.963807^B12))*CValue4/100)+MAX(BillingO1Ph4-BillingS1Ph4,0) ->  | H12: =IF(G12>0,G12,F12) ->  | I12: =H12*Retention ->  | J12: =H12-I12 ->  | K12: =(Tolerance)/4*(1-ABS(50-B12)/50)*CValue4/100 ->  | L12: =M12 ->  | M12: =IF(J12-K12>0,J12-K12,0) ->  | N12: =O12 ->  | O12: =J12+K12 ->  | Q12: =IF(P12>0,P12,0) -> 0
B13: =IF(B12<100,MIN((A13-StartDate4)/(CompleteDate4-StartDate4)*100,100),IF(B12=100,IF(A13<>"","HB Release",""),"")) ->  | C13: =IF(B12<100,H13-H12,IF(B13="HB Release",0,"")) ->  | D13: =IF(B12<100,C13*Retention,IF(B13="HB Release",I12*-1,"")) ->  | E13: =IF(B12<100,C13-D13,IF(B13="HB Release",C13-D13,"")) ->  | F13: =IF(B12<100,MIN(CValue4,113.951*(0.005457^(0.963807^B13))*CValue4/100)+(MAX(BillingO1Ph4-BillingS1Ph4,0)*(1-MIN((A13-StartDate4)/(CompleteDate4-StartDate4),1))),IF(B13="HB Release",H12,"")) ->  | H13: =IF(G13>0,G13,F13) ->  | I13: =IF(B12<100,H13*Retention,IF(B13="HB Release",0,"")) ->  | J13: =IF(B12<100,H13-I13,IF(B13="HB Release",H13-I13,"")) ->  | K13: =IF(B12<100,(Tolerance)/4*(1-ABS(50-B13)/50)*CValue4/100,IF(B13="HB Release",0,"")) ->  | L13: =IF(B13<=100,M13-M12,"") ->  | M13: =IF(B13<=100,IF(J13-K13>0,J13-K13,0),IF(B13="HB Release",J13-K13,"")) ->  | N13: =IF(B13<=100,O13-O12,"") ->  | O13: =IF(B13<=100,J13+K13,IF(B13="HB Release",J13-K13,"")) ->  | Q13: =IF(P13>0,P13 + Q12,Q12) -> 0
C14: =IF(B13<100,H14-H13,IF(B14="HB Release",0,"")) ->  | E14: =IF(B13<100,C14-D14,IF(B14="HB Release",C14-D14,"")) ->  | J14: =IF(B13<100,H14-I14,IF(B14="HB Release",H14-I14,"")) ->  | Q14: 0
Q15: 0
Q16: 0
Q17: 0
Q18: 0
Q19: 0
Q20: 0
B77: =IF(B76<100,MIN((A77-StartDate4)/(CompleteDate4-StartDate4)*100,100),IF(B76=100,IF(A77<>"","HB Release",""),"")) ->  | D77: =IF(B76<100,C77*Retention,IF(B77="HB Release",I76*-1,"")) ->  | F77: =IF(B76<100,MIN(CValue4,113.951*(0.005457^(0.963807^B77))*CValue4/100)+(MAX(BillingO1Ph4-BillingS1Ph4,0)*(1-MIN((A77-StartDate4)/(CompleteDate4-StartDate4),1))),IF(B77="HB Release",H76,"")) ->  | H77: =IF(G77>0,G77,F77) ->  | I77: =IF(B76<100,H77*Retention,IF(B77="HB Release",0,"")) ->  | K77: =IF(B76<100,(Tolerance)/4*(1-ABS(50-B77)/50)*CValue4/100,IF(B77="HB Release",0,"")) ->  | L77: =IF(B77<=100,M77-M76,"") ->  | M77: =IF(B77<=100,IF(J77-K77>0,J77-K77,0),IF(B77="HB Release",J77-K77,"")) ->  | N77: =IF(B77<=100,O77-O76,"") ->  | O77: =IF(B77<=100,J77+K77,IF(B77="HB Release",J77-K77,"")) -> 
C78: =IF(B77<100,H78-H77,IF(B78="HB Release",0,"")) ->  | E78: =IF(B77<100,C78-D78,IF(B78="HB Release",C78-D78,"")) ->  | J78: =IF(B77<100,H78-I78,IF(B78="HB Release",H78-I78,"")) -> 
B141: =IF(B140<100,MIN((A141-StartDate4)/(CompleteDate4-StartDate4)*100,100),IF(B140=100,IF(A141<>"","HB Release",""),"")) ->  | D141: =IF(B140<100,C141*Retention,IF(B141="HB Release",I140*-1,"")) ->  | F141: =IF(B140<100,MIN(CValue4,113.951*(0.005457^(0.963807^B141))*CValue4/100)+(MAX(BillingO1Ph4-BillingS1Ph4,0)*(1-MIN((A141-StartDate4)/(CompleteDate4-StartDate4),1))),IF(B141="HB Release",H140,"")) ->  | H141: =IF(G141>0,G141,F141) ->  | I141: =IF(B140<100,H141*Retention,IF(B141="HB Release",0,"")) ->  | K141: =IF(B140<100,(Tolerance)/4*(1-ABS(50-B141)/50)*CValue4/100,IF(B141="HB Release",0,"")) ->  | L141: =IF(B141<=100,M141-M140,"") ->  | M141: =IF(B141<=100,IF(J141-K141>0,J141-K141,0),IF(B141="HB Release",J141-K141,"")) ->  | N141: =IF(B141<=100,O141-O140,"") ->  | O141: =IF(B141<=100,J141+K141,IF(B141="HB Release",J141-K141,"")) -> 
C142: =IF(B141<100,H142-H141,IF(B142="HB Release",0,"")) ->  | E142: =IF(B141<100,C142-D142,IF(B142="HB Release",C142-D142,"")) ->  | J142: =IF(B141<100,H142-I142,IF(B142="HB Release",H142-I142,"")) -> 
B205: =IF(B204<100,MIN((A205-StartDate4)/(CompleteDate4-StartDate4)*100,100),IF(B204=100,IF(A205<>"","HB Release",""),"")) ->  | D205: =IF(B204<100,C205*Retention,IF(B205="HB Release",I204*-1,"")) ->  | F205: =IF(B204<100,MIN(CValue4,113.951*(0.005457^(0.963807^B205))*CValue4/100)+(MAX(BillingO1Ph4-BillingS1Ph4,0)*(1-MIN((A205-StartDate4)/(CompleteDate4-StartDate4),1))),IF(B205="HB Release",H204,"")) ->  | H205: =IF(G205>0,G205,F205) ->  | I205: =IF(B204<100,H205*Retention,IF(B205="HB Release",0,"")) ->  | K205: =IF(B204<100,(Tolerance)/4*(1-ABS(50-B205)/50)*CValue4/100,IF(B205="HB Release",0,"")) ->  | L205: =IF(B205<=100,M205-M204,"") ->  | M205: =IF(B205<=100,IF(J205-K205>0,J205-K205,0),IF(B205="HB Release",J205-K205,"")) ->  | N205: =IF(B205<=100,O205-O204,"") ->  | O205: =IF(B205<=100,J205+K205,IF(B205="HB Release",J205-K205,"")) -> 
C206: =IF(B205<100,H206-H205,IF(B206="HB Release",0,"")) ->  | E206: =IF(B205<100,C206-D206,IF(B206="HB Release",C206-D206,"")) ->  | J206: =IF(B205<100,H206-I206,IF(B206="HB Release",H206-I206,"")) -> 
B269: =IF(B268<100,MIN((A269-StartDate4)/(CompleteDate4-StartDate4)*100,100),IF(B268=100,IF(A269<>"","HB Release",""),"")) ->  | D269: =IF(B268<100,C269*Retention,IF(B269="HB Release",I268*-1,"")) ->  | F269: =IF(B268<100,MIN(CValue4,113.951*(0.005457^(0.963807^B269))*CValue4/100)+(MAX(BillingO1Ph4-BillingS1Ph4,0)*(1-MIN((A269-StartDate4)/(CompleteDate4-StartDate4),1))),IF(B269="HB Release",H268,"")) ->  | H269: =IF(G269>0,G269,F269) ->  | I269: =IF(B268<100,H269*Retention,IF(B269="HB Release",0,"")) ->  | K269: =IF(B268<100,(Tolerance)/4*(1-ABS(50-B269)/50)*CValue4/100,IF(B269="HB Release",0,"")) ->  | L269: =IF(B269<=100,M269-M268,"") ->  | M269: =IF(B269<=100,IF(J269-K269>0,J269-K269,0),IF(B269="HB Release",J269-K269,"")) ->  | N269: =IF(B269<=100,O269-O268,"") ->  | O269: =IF(B269<=100,J269+K269,IF(B269="HB Release",J269-K269,"")) -> 
C270: =IF(B269<100,H270-H269,IF(B270="HB Release",0,"")) ->  | E270: =IF(B269<100,C270-D270,IF(B270="HB Release",C270-D270,"")) ->  | J270: =IF(B269<100,H270-I270,IF(B270="HB Release",H270-I270,"")) -> 

Sheet Phase 5 (hidden)
A2: ='CF Setup'!C4&" - Phase 5" -> Fox Office Building 103 - Phase 5
A3: ='CF Setup'!C5 -> Prepared by ??
A4: ='CF Setup'!C6 -> Cash Flow Report
A8: ="Period: "&(TEXT(StartDate5,"mmmm d, yyyy")&" To "&TEXT(CompleteDate5,"mmmm d, yyyy")) -> Period: January 0, 1900 To January 0, 1900 | Q8: ="Value: "&TEXT(CValue5,"$0,0") -> Value: $00
A9: Phase | B9: 5
C10: This Period | F10: Cumulative | L10: Late Curve | N10: Early Curve | P10: Actual Billing | R10: Expected Payment
A11: Draw Date | B11: Duration% | C11: Gross Billing | D11: Retention | E11: Net Billing | F11: Calculated Gross | G11: Adjusted Gross | H11: Gross Billing | I11: Retention | J11: Net Billing | K11: SpreadFactor | L11: Monthly | M11: Cumulative | N11: Monthly | O11: Cumulative | P11: Monthly | Q11: Cumulative | R11: Date | S11: Monthly | T11: Cummalative
B12: =MIN((A12-StartDate5)/(CompleteDate5-StartDate5)*100,100) ->  | C12: =IF(B12<100,H12,"") ->  | D12: =C12*Retention ->  | E12: =C12-D12 ->  | F12: =MIN(CValue5,113.951*(0.005457^(0.963807^B12))*CValue5/100)+MAX(BillingO1Ph5-BillingS1Ph5,0) ->  | H12: =IF(G12>0,G12,F12) ->  | I12: =H12*Retention ->  | J12: =H12-I12 ->  | K12: =(Tolerance)/4*(1-ABS(50-B12)/50)*CValue5/100 ->  | L12: =M12 ->  | M12: =IF(J12-K12>0,J12-K12,0) ->  | N12: =O12 ->  | O12: =J12+K12 ->  | Q12: =IF(P12>0,P12,0) -> 0 | R12: =IF(ISBLANK(A12), , A12+ PaymentDate) -> 00:00:00 | S12: =IF(ISBLANK(P12), , P12) -> 0 | T12: =IF(Q12=0, 0, Q12) -> 0
B13: =IF(B12<100,MIN((A13-StartDate5)/(CompleteDate5-StartDate5)*100,100),IF(B12=100,IF(A13<>"","HB Release",""),"")) ->  | C13: =IF(B12<100,H13-H12,IF(B13="HB Release",0,"")) ->  | D13: =IF(B12<100,C13*Retention,IF(B13="HB Release",I12*-1,"")) ->  | E13: =IF(B12<100,C13-D13,IF(B13="HB Release",C13-D13,"")) ->  | F13: =IF(B12<100,MIN(CValue5,113.951*(0.005457^(0.963807^B13))*CValue5/100)+(MAX(BillingO1Ph5-BillingS1Ph5,0)*(1-MIN((A13-StartDate5)/(CompleteDate5-StartDate5),1))),IF(B13="HB Release",H12,"")) ->  | H13: =IF(G13>0,G13,F13) ->  | I13: =IF(B12<100,H13*Retention,IF(B13="HB Release",0,"")) ->  | J13: =IF(B12<100,H13-I13,IF(B13="HB Release",H13-I13,"")) ->  | K13: =IF(B12<100,(Tolerance)/4*(1-ABS(50-B13)/50)*CValue5/100,IF(B13="HB Release",0,"")) ->  | L13: =IF(B13<=100,M13-M12,"") ->  | M13: =IF(B13<=100,IF(J13-K13>0,J13-K13,0),IF(B13="HB Release",J13-K13,"")) ->  | N13: =IF(B13<=100,O13-O12,"") ->  | O13: =IF(B13<=100,J13+K13,IF(B13="HB Release",J13-K13,"")) ->  | Q13: =IF(P13>0,P13 + Q12,Q12) -> 0 | R13: =IF(ISBLANK(A13), , A13+ PaymentDate) -> 00:00:00 | S13: =IF(ISBLANK(P13), , P13) -> 0 | T13: =IF(Q13=0, 0, Q13) -> 0
C14: =IF(B13<100,H14-H13,IF(B14="HB Release",0,"")) ->  | E14: =IF(B13<100,C14-D14,IF(B14="HB Release",C14-D14,"")) ->  | J14: =IF(B13<100,H14-I14,IF(B14="HB Release",H14-I14,"")) ->  | Q14: =IF(P14>0,P14 + Q13,Q13) -> 0 | R14: =IF(ISBLANK(A14), , A14+ PaymentDate) -> 00:00:00 | S14: =IF(ISBLANK(P14), , P14) -> 0 | T14: =IF(Q14=0, 0, Q14) -> 0
Q15: =IF(P15>0,P15 + Q14,Q14) -> 0 | R15: =IF(ISBLANK(A15), , A15+ PaymentDate) -> 00:00:00 | S15: =IF(ISBLANK(P15), , P15) -> 0 | T15: =IF(Q15=0, 0, Q15) -> 0
Q16: =IF(P16>0,P16 + Q15,Q15) -> 0 | R16: =IF(ISBLANK(A16), , A16+ PaymentDate) -> 00:00:00 | S16: =IF(ISBLANK(P16), , P16) -> 0 | T16: =IF(Q16=0, 0, Q16) -> 0
B77: =IF(B76<100,MIN((A77-StartDate5)/(CompleteDate5-StartDate5)*100,100),IF(B76=100,IF(A77<>"","HB Release",""),"")) ->  | D77: =IF(B76<100,C77*Retention,IF(B77="HB Release",I76*-1,"")) ->  | F77: =IF(B76<100,MIN(CValue5,113.951*(0.005457^(0.963807^B77))*CValue5/100)+(MAX(BillingO1Ph5-BillingS1Ph5,0)*(1-MIN((A77-StartDate5)/(CompleteDate5-StartDate5),1))),IF(B77="HB Release",H76,"")) ->  | H77: =IF(G77>0,G77,F77) ->  | I77: =IF(B76<100,H77*Retention,IF(B77="HB Release",0,"")) ->  | K77: =IF(B76<100,(Tolerance)/4*(1-ABS(50-B77)/50)*CValue5/100,IF(B77="HB Release",0,"")) ->  | L77: =IF(B77<=100,M77-M76,"") ->  | M77: =IF(B77<=100,IF(J77-K77>0,J77-K77,0),IF(B77="HB Release",J77-K77,"")) ->  | N77: =IF(B77<=100,O77-O76,"") ->  | O77: =IF(B77<=100,J77+K77,IF(B77="HB Release",J77-K77,"")) -> 
C78: =IF(B77<100,H78-H77,IF(B78="HB Release",0,"")) ->  | E78: =IF(B77<100,C78-D78,IF(B78="HB Release",C78-D78,"")) ->  | J78: =IF(B77<100,H78-I78,IF(B78="HB Release",H78-I78,"")) -> 
B141: =IF(B140<100,MIN((A141-StartDate5)/(CompleteDate5-StartDate5)*100,100),IF(B140=100,IF(A141<>"","HB Release",""),"")) ->  | D141: =IF(B140<100,C141*Retention,IF(B141="HB Release",I140*-1,"")) ->  | F141: =IF(B140<100,MIN(CValue5,113.951*(0.005457^(0.963807^B141))*CValue5/100)+(MAX(BillingO1Ph5-BillingS1Ph5,0)*(1-MIN((A141-StartDate5)/(CompleteDate5-StartDate5),1))),IF(B141="HB Release",H140,"")) ->  | H141: =IF(G141>0,G141,F141) ->  | I141: =IF(B140<100,H141*Retention,IF(B141="HB Release",0,"")) ->  | K141: =IF(B140<100,(Tolerance)/4*(1-ABS(50-B141)/50)*CValue5/100,IF(B141="HB Release",0,"")) ->  | L141: =IF(B141<=100,M141-M140,"") ->  | M141: =IF(B141<=100,IF(J141-K141>0,J141-K141,0),IF(B141="HB Release",J141-K141,"")) ->  | N141: =IF(B141<=100,O141-O140,"") ->  | O141: =IF(B141<=100,J141+K141,IF(B141="HB Release",J141-K141,"")) -> 
C142: =IF(B141<100,H142-H141,IF(B142="HB Release",0,"")) ->  | E142: =IF(B141<100,C142-D142,IF(B142="HB Release",C142-D142,"")) ->  | J142: =IF(B141<100,H142-I142,IF(B142="HB Release",H142-I142,"")) -> 
B205: =IF(B204<100,MIN((A205-StartDate5)/(CompleteDate5-StartDate5)*100,100),IF(B204=100,IF(A205<>"","HB Release",""),"")) ->  | D205: =IF(B204<100,C205*Retention,IF(B205="HB Release",I204*-1,"")) ->  | F205: =IF(B204<100,MIN(CValue5,113.951*(0.005457^(0.963807^B205))*CValue5/100)+(MAX(BillingO1Ph5-BillingS1Ph5,0)*(1-MIN((A205-StartDate5)/(CompleteDate5-StartDate5),1))),IF(B205="HB Release",H204,"")) ->  | H205: =IF(G205>0,G205,F205) ->  | I205: =IF(B204<100,H205*Retention,IF(B205="HB Release",0,"")) ->  | K205: =IF(B204<100,(Tolerance)/4*(1-ABS(50-B205)/50)*CValue5/100,IF(B205="HB Release",0,"")) ->  | L205: =IF(B205<=100,M205-M204,"") ->  | M205: =IF(B205<=100,IF(J205-K205>0,J205-K205,0),IF(B205="HB Release",J205-K205,"")) ->  | N205: =IF(B205<=100,O205-O204,"") ->  | O205: =IF(B205<=100,J205+K205,IF(B205="HB Release",J205-K205,"")) -> 
C206: =IF(B205<100,H206-H205,IF(B206="HB Release",0,"")) ->  | E206: =IF(B205<100,C206-D206,IF(B206="HB Release",C206-D206,"")) ->  | J206: =IF(B205<100,H206-I206,IF(B206="HB Release",H206-I206,"")) -> 
B269: =IF(B268<100,MIN((A269-StartDate5)/(CompleteDate5-StartDate5)*100,100),IF(B268=100,IF(A269<>"","HB Release",""),"")) ->  | D269: =IF(B268<100,C269*Retention,IF(B269="HB Release",I268*-1,"")) ->  | F269: =IF(B268<100,MIN(CValue5,113.951*(0.005457^(0.963807^B269))*CValue5/100)+(MAX(BillingO1Ph5-BillingS1Ph5,0)*(1-MIN((A269-StartDate5)/(CompleteDate5-StartDate5),1))),IF(B269="HB Release",H268,"")) ->  | H269: =IF(G269>0,G269,F269) ->  | I269: =IF(B268<100,H269*Retention,IF(B269="HB Release",0,"")) ->  | K269: =IF(B268<100,(Tolerance)/4*(1-ABS(50-B269)/50)*CValue5/100,IF(B269="HB Release",0,"")) ->  | L269: =IF(B269<=100,M269-M268,"") ->  | M269: =IF(B269<=100,IF(J269-K269>0,J269-K269,0),IF(B269="HB Release",J269-K269,"")) ->  | N269: =IF(B269<=100,O269-O268,"") ->  | O269: =IF(B269<=100,J269+K269,IF(B269="HB Release",J269-K269,"")) -> 
C270: =IF(B269<100,H270-H269,IF(B270="HB Release",0,"")) ->  | E270: =IF(B269<100,C270-D270,IF(B270="HB Release",C270-D270,"")) ->  | J270: =IF(B269<100,H270-I270,IF(B270="HB Release",H270-I270,"")) -> 

Sheet Phase 6 (hidden)
A2: ='CF Setup'!C4&" - Phase 6" -> Fox Office Building 103 - Phase 6
A3: ='CF Setup'!C5 -> Prepared by ??
A4: ='CF Setup'!C6 -> Cash Flow Report
A8: ="Period: "&(TEXT(StartDate6,"mmmm d, yyyy")&" To "&TEXT(CompleteDate6,"mmmm d, yyyy")) -> Period: January 0, 1900 To January 0, 1900 | Q8: ="Value: "&TEXT(CValue6,"$0,0") -> Value: $00
A9: Phase | B9: 6
C10: This Period | F10: Cumulative | L10: Late Curve | N10: Early Curve | P10: Actual Billing | R10: Expected Payment
A11: Draw Date | B11: Duration% | C11: Gross Billing | D11: Retention | E11: Net Billing | F11: Calculated Gross | G11: Adjusted Gross | H11: Gross Billing | I11: Retention | J11: Net Billing | K11: SpreadFactor | L11: Monthly | M11: Cumulative | N11: Monthly | O11: Cumulative | P11: Monthly | Q11: Cumulative | R11: Date | S11: Monthly | T11: Cummalative
B12: =MIN((A12-StartDate6)/(CompleteDate6-StartDate6)*100,100) ->  | C12: =IF(B12<100,H12,"") ->  | D12: =C12*Retention ->  | E12: =C12-D12 ->  | F12: =MIN(CValue6,113.951*(0.005457^(0.963807^B12))*CValue6/100)+MAX(BillingO1Ph6-BillingS1Ph6,0) ->  | H12: =IF(G12>0,G12,F12) ->  | I12: =H12*Retention ->  | J12: =H12-I12 ->  | K12: =(Tolerance)/4*(1-ABS(50-B12)/50)*CValue6/100 ->  | L12: =M12 ->  | M12: =IF(J12-K12>0,J12-K12,0) ->  | N12: =O12 ->  | O12: =J12+K12 ->  | Q12: =IF(P12>0,P12,0) -> 0 | R12: =IF(ISBLANK(A12), , A12+ PaymentDate) -> 00:00:00 | S12: =IF(ISBLANK(P12), , P12) -> 0 | T12: =IF(Q12=0, 0, Q12) -> 0
B13: =IF(B12<100,MIN((A13-StartDate6)/(CompleteDate6-StartDate6)*100,100),IF(B12=100,IF(A13<>"","HB Release",""),"")) ->  | C13: =IF(B12<100,H13-H12,IF(B13="HB Release",0,"")) ->  | D13: =IF(B12<100,C13*Retention,IF(B13="HB Release",I12*-1,"")) ->  | E13: =IF(B12<100,C13-D13,IF(B13="HB Release",C13-D13,"")) ->  | F13: =IF(B12<100,MIN(CValue6,113.951*(0.005457^(0.963807^B13))*CValue6/100)+(MAX(BillingO1Ph6-BillingS1Ph6,0)*(1-MIN((A13-StartDate6)/(CompleteDate6-StartDate6),1))),IF(B13="HB Release",H12,"")) ->  | H13: =IF(G13>0,G13,F13) ->  | I13: =IF(B12<100,H13*Retention,IF(B13="HB Release",0,"")) ->  | J13: =IF(B12<100,H13-I13,IF(B13="HB Release",H13-I13,"")) ->  | K13: =IF(B12<100,(Tolerance)/4*(1-ABS(50-B13)/50)*CValue6/100,IF(B13="HB Release",0,"")) ->  | L13: =IF(B13<=100,M13-M12,"") ->  | M13: =IF(B13<=100,IF(J13-K13>0,J13-K13,0),IF(B13="HB Release",J13-K13,"")) ->  | N13: =IF(B13<=100,O13-O12,"") ->  | O13: =IF(B13<=100,J13+K13,IF(B13="HB Release",J13-K13,"")) ->  | Q13: =IF(P13>0,P13 + Q12,Q12) -> 0 | R13: 00:00:00 | S13: 0 | T13: 0
C14: =IF(B13<100,H14-H13,IF(B14="HB Release",0,"")) ->  | E14: =IF(B13<100,C14-D14,IF(B14="HB Release",C14-D14,"")) ->  | J14: =IF(B13<100,H14-I14,IF(B14="HB Release",H14-I14,"")) ->  | Q14: 0 | R14: 00:00:00 | S14: 0 | T14: 0
Q15: 0 | R15: 00:00:00 | S15: 0 | T15: 0
Q16: 0 | R16: 00:00:00 | S16: 0 | T16: 0
Q17: 0 | R17: 00:00:00 | S17: 0 | T17: 0
Q18: 0 | R18: 00:00:00 | S18: 0 | T18: 0
Q19: 0 | R19: 00:00:00 | S19: 0 | T19: 0
Q20: 0 | R20: 00:00:00 | S20: 0 | T20: 0
Q21: 0 | R21: 00:00:00 | S21: 0 | T21: 0
Q22: 0 | R22: 00:00:00 | S22: 0 | T22: 0
Q23: 0 | R23: 00:00:00 | S23: 0 | T23: 0
Q24: 0 | R24: 00:00:00 | S24: 0 | T24: 0
Q25: 0 | R25: 00:00:00 | S25: 0 | T25: 0
B77: =IF(B76<100,MIN((A77-StartDate6)/(CompleteDate6-StartDate6)*100,100),IF(B76=100,IF(A77<>"","HB Release",""),"")) ->  | D77: =IF(B76<100,C77*Retention,IF(B77="HB Release",I76*-1,"")) ->  | F77: =IF(B76<100,MIN(CValue6,113.951*(0.005457^(0.963807^B77))*CValue6/100)+(MAX(BillingO1Ph6-BillingS1Ph6,0)*(1-MIN((A77-StartDate6)/(CompleteDate6-StartDate6),1))),IF(B77="HB Release",H76,"")) ->  | H77: =IF(G77>0,G77,F77) ->  | I77: =IF(B76<100,H77*Retention,IF(B77="HB Release",0,"")) ->  | K77: =IF(B76<100,(Tolerance)/4*(1-ABS(50-B77)/50)*CValue6/100,IF(B77="HB Release",0,"")) ->  | L77: =IF(B77<=100,M77-M76,"") ->  | M77: =IF(B77<=100,IF(J77-K77>0,J77-K77,0),IF(B77="HB Release",J77-K77,"")) ->  | N77: =IF(B77<=100,O77-O76,"") ->  | O77: =IF(B77<=100,J77+K77,IF(B77="HB Release",J77-K77,"")) -> 
C78: =IF(B77<100,H78-H77,IF(B78="HB Release",0,"")) ->  | E78: =IF(B77<100,C78-D78,IF(B78="HB Release",C78-D78,"")) ->  | J78: =IF(B77<100,H78-I78,IF(B78="HB Release",H78-I78,"")) -> 
B141: =IF(B140<100,MIN((A141-StartDate6)/(CompleteDate6-StartDate6)*100,100),IF(B140=100,IF(A141<>"","HB Release",""),"")) ->  | D141: =IF(B140<100,C141*Retention,IF(B141="HB Release",I140*-1,"")) ->  | F141: =IF(B140<100,MIN(CValue6,113.951*(0.005457^(0.963807^B141))*CValue6/100)+(MAX(BillingO1Ph6-BillingS1Ph6,0)*(1-MIN((A141-StartDate6)/(CompleteDate6-StartDate6),1))),IF(B141="HB Release",H140,"")) ->  | H141: =IF(G141>0,G141,F141) ->  | I141: =IF(B140<100,H141*Retention,IF(B141="HB Release",0,"")) ->  | K141: =IF(B140<100,(Tolerance)/4*(1-ABS(50-B141)/50)*CValue6/100,IF(B141="HB Release",0,"")) ->  | L141: =IF(B141<=100,M141-M140,"") ->  | M141: =IF(B141<=100,IF(J141-K141>0,J141-K141,0),IF(B141="HB Release",J141-K141,"")) ->  | N141: =IF(B141<=100,O141-O140,"") ->  | O141: =IF(B141<=100,J141+K141,IF(B141="HB Release",J141-K141,"")) -> 
C142: =IF(B141<100,H142-H141,IF(B142="HB Release",0,"")) ->  | E142: =IF(B141<100,C142-D142,IF(B142="HB Release",C142-D142,"")) ->  | J142: =IF(B141<100,H142-I142,IF(B142="HB Release",H142-I142,"")) -> 
B205: =IF(B204<100,MIN((A205-StartDate6)/(CompleteDate6-StartDate6)*100,100),IF(B204=100,IF(A205<>"","HB Release",""),"")) ->  | D205: =IF(B204<100,C205*Retention,IF(B205="HB Release",I204*-1,"")) ->  | F205: =IF(B204<100,MIN(CValue6,113.951*(0.005457^(0.963807^B205))*CValue6/100)+(MAX(BillingO1Ph6-BillingS1Ph6,0)*(1-MIN((A205-StartDate6)/(CompleteDate6-StartDate6),1))),IF(B205="HB Release",H204,"")) ->  | H205: =IF(G205>0,G205,F205) ->  | I205: =IF(B204<100,H205*Retention,IF(B205="HB Release",0,"")) ->  | K205: =IF(B204<100,(Tolerance)/4*(1-ABS(50-B205)/50)*CValue6/100,IF(B205="HB Release",0,"")) ->  | L205: =IF(B205<=100,M205-M204,"") ->  | M205: =IF(B205<=100,IF(J205-K205>0,J205-K205,0),IF(B205="HB Release",J205-K205,"")) ->  | N205: =IF(B205<=100,O205-O204,"") ->  | O205: =IF(B205<=100,J205+K205,IF(B205="HB Release",J205-K205,"")) -> 
C206: =IF(B205<100,H206-H205,IF(B206="HB Release",0,"")) ->  | E206: =IF(B205<100,C206-D206,IF(B206="HB Release",C206-D206,"")) ->  | J206: =IF(B205<100,H206-I206,IF(B206="HB Release",H206-I206,"")) -> 
B269: =IF(B268<100,MIN((A269-StartDate6)/(CompleteDate6-StartDate6)*100,100),IF(B268=100,IF(A269<>"","HB Release",""),"")) ->  | D269: =IF(B268<100,C269*Retention,IF(B269="HB Release",I268*-1,"")) ->  | F269: =IF(B268<100,MIN(CValue6,113.951*(0.005457^(0.963807^B269))*CValue6/100)+(MAX(BillingO1Ph6-BillingS1Ph6,0)*(1-MIN((A269-StartDate6)/(CompleteDate6-StartDate6),1))),IF(B269="HB Release",H268,"")) ->  | H269: =IF(G269>0,G269,F269) ->  | I269: =IF(B268<100,H269*Retention,IF(B269="HB Release",0,"")) ->  | K269: =IF(B268<100,(Tolerance)/4*(1-ABS(50-B269)/50)*CValue6/100,IF(B269="HB Release",0,"")) ->  | L269: =IF(B269<=100,M269-M268,"") ->  | M269: =IF(B269<=100,IF(J269-K269>0,J269-K269,0),IF(B269="HB Release",J269-K269,"")) ->  | N269: =IF(B269<=100,O269-O268,"") ->  | O269: =IF(B269<=100,J269+K269,IF(B269="HB Release",J269-K269,"")) -> 
C270: =IF(B269<100,H270-H269,IF(B270="HB Release",0,"")) ->  | E270: =IF(B269<100,C270-D270,IF(B270="HB Release",C270-D270,"")) ->  | J270: =IF(B269<100,H270-I270,IF(B270="HB Release",H270-I270,"")) -> 

Sheet Phase 7 (hidden)
A2: ='CF Setup'!C4&" - Phase 7" -> Fox Office Building 103 - Phase 7
A3: ='CF Setup'!C5 -> Prepared by ??
A4: ='CF Setup'!C6 -> Cash Flow Report
A8: ="Period: "&(TEXT(StartDate7,"mmmm d, yyyy")&" To "&TEXT(CompleteDate7,"mmmm d, yyyy")) -> Period: January 0, 1900 To January 0, 1900 | Q8: ="Value: "&TEXT(CValue7,"$0,0") -> Value: $00
A9: Phase | B9: 7
C10: This Period | F10: Cumulative | L10: Late Curve | N10: Early Curve | P10: Actual Billing | R10: Expected Payment
A11: Draw Date | B11: Duration% | C11: Gross Billing | D11: Retention | E11: Net Billing | F11: Calculated Gross | G11: Adjusted Gross | H11: Gross Billing | I11: Retention | J11: Net Billing | K11: SpreadFactor | L11: Monthly | M11: Cumulative | N11: Monthly | O11: Cumulative | P11: Monthly | Q11: Cumulative | R11: Date | S11: Monthly | T11: Cummalative
B12: =MIN((A12-StartDate7)/(CompleteDate7-StartDate7)*100,100) ->  | C12: =IF(B12<100,H12,"") ->  | D12: =C12*Retention ->  | E12: =C12-D12 ->  | F12: =MIN(CValue7,113.951*(0.005457^(0.963807^B12))*CValue7/100)+MAX(BillingO1Ph7-BillingS1Ph7,0) ->  | H12: =IF(G12>0,G12,F12) ->  | I12: =H12*Retention ->  | J12: =H12-I12 ->  | K12: =(Tolerance)/4*(1-ABS(50-B12)/50)*CValue7/100 ->  | L12: =M12 ->  | M12: =IF(J12-K12>0,J12-K12,0) ->  | N12: =O12 ->  | O12: =J12+K12 ->  | Q12: =IF(P12>0,P12,0) -> 0 | R12: =IF(ISBLANK(A12), , A12+ PaymentDate) -> 00:00:00 | S12: =IF(ISBLANK(P12), , P12) -> 0 | T12: =IF(Q12=0, 0, Q12) -> 0
B13: =IF(B12<100,MIN((A13-StartDate7)/(CompleteDate7-StartDate7)*100,100),IF(B12=100,IF(A13<>"","HB Release",""),"")) ->  | C13: =IF(B12<100,H13-H12,IF(B13="HB Release",0,"")) ->  | D13: =IF(B12<100,C13*Retention,IF(B13="HB Release",I12*-1,"")) ->  | E13: =IF(B12<100,C13-D13,IF(B13="HB Release",C13-D13,"")) ->  | F13: =IF(B12<100,MIN(CValue7,113.951*(0.005457^(0.963807^B13))*CValue7/100)+(MAX(BillingO1Ph7-BillingS1Ph7,0)*(1-MIN((A13-StartDate7)/(CompleteDate7-StartDate7),1))),IF(B13="HB Release",H12,"")) ->  | H13: =IF(G13>0,G13,F13) ->  | I13: =IF(B12<100,H13*Retention,IF(B13="HB Release",0,"")) ->  | J13: =IF(B12<100,H13-I13,IF(B13="HB Release",H13-I13,"")) ->  | K13: =IF(B12<100,(Tolerance)/4*(1-ABS(50-B13)/50)*CValue7/100,IF(B13="HB Release",0,"")) ->  | L13: =IF(B13<=100,M13-M12,"") ->  | M13: =IF(B13<=100,IF(J13-K13>0,J13-K13,0),IF(B13="HB Release",J13-K13,"")) ->  | N13: =IF(B13<=100,O13-O12,"") ->  | O13: =IF(B13<=100,J13+K13,IF(B13="HB Release",J13-K13,"")) ->  | Q13: =IF(P13>0,P13 + Q12,Q12) -> 0 | R13: 00:00:00 | S13: 0 | T13: 0
C14: =IF(B13<100,H14-H13,IF(B14="HB Release",0,"")) ->  | E14: =IF(B13<100,C14-D14,IF(B14="HB Release",C14-D14,"")) ->  | J14: =IF(B13<100,H14-I14,IF(B14="HB Release",H14-I14,"")) ->  | Q14: =IF(P14>0,P14 + Q13,Q13) -> 0 | R14: 00:00:00 | S14: 0 | T14: 0
Q15: =IF(P15>0,P15 + Q14,Q14) -> 0 | R15: 00:00:00 | S15: 0 | T15: 0
Q16: =IF(P16>0,P16 + Q15,Q15) -> 0 | R16: 00:00:00 | S16: 0 | T16: 0
Q17: =IF(P17>0,P17 + Q16,Q16) -> 0 | R17: 00:00:00 | S17: 0 | T17: 0
B77: =IF(B76<100,MIN((A77-StartDate7)/(CompleteDate7-StartDate7)*100,100),IF(B76=100,IF(A77<>"","HB Release",""),"")) ->  | D77: =IF(B76<100,C77*Retention,IF(B77="HB Release",I76*-1,"")) ->  | F77: =IF(B76<100,MIN(CValue7,113.951*(0.005457^(0.963807^B77))*CValue7/100)+(MAX(BillingO1Ph7-BillingS1Ph7,0)*(1-MIN((A77-StartDate7)/(CompleteDate7-StartDate7),1))),IF(B77="HB Release",H76,"")) ->  | H77: =IF(G77>0,G77,F77) ->  | I77: =IF(B76<100,H77*Retention,IF(B77="HB Release",0,"")) ->  | K77: =IF(B76<100,(Tolerance)/4*(1-ABS(50-B77)/50)*CValue7/100,IF(B77="HB Release",0,"")) ->  | L77: =IF(B77<=100,M77-M76,"") ->  | M77: =IF(B77<=100,IF(J77-K77>0,J77-K77,0),IF(B77="HB Release",J77-K77,"")) ->  | N77: =IF(B77<=100,O77-O76,"") ->  | O77: =IF(B77<=100,J77+K77,IF(B77="HB Release",J77-K77,"")) -> 
C78: =IF(B77<100,H78-H77,IF(B78="HB Release",0,"")) ->  | E78: =IF(B77<100,C78-D78,IF(B78="HB Release",C78-D78,"")) ->  | J78: =IF(B77<100,H78-I78,IF(B78="HB Release",H78-I78,"")) -> 
B141: =IF(B140<100,MIN((A141-StartDate7)/(CompleteDate7-StartDate7)*100,100),IF(B140=100,IF(A141<>"","HB Release",""),"")) ->  | D141: =IF(B140<100,C141*Retention,IF(B141="HB Release",I140*-1,"")) ->  | F141: =IF(B140<100,MIN(CValue7,113.951*(0.005457^(0.963807^B141))*CValue7/100)+(MAX(BillingO1Ph7-BillingS1Ph7,0)*(1-MIN((A141-StartDate7)/(CompleteDate7-StartDate7),1))),IF(B141="HB Release",H140,"")) ->  | H141: =IF(G141>0,G141,F141) ->  | I141: =IF(B140<100,H141*Retention,IF(B141="HB Release",0,"")) ->  | K141: =IF(B140<100,(Tolerance)/4*(1-ABS(50-B141)/50)*CValue7/100,IF(B141="HB Release",0,"")) ->  | L141: =IF(B141<=100,M141-M140,"") ->  | M141: =IF(B141<=100,IF(J141-K141>0,J141-K141,0),IF(B141="HB Release",J141-K141,"")) ->  | N141: =IF(B141<=100,O141-O140,"") ->  | O141: =IF(B141<=100,J141+K141,IF(B141="HB Release",J141-K141,"")) -> 
C142: =IF(B141<100,H142-H141,IF(B142="HB Release",0,"")) ->  | E142: =IF(B141<100,C142-D142,IF(B142="HB Release",C142-D142,"")) ->  | J142: =IF(B141<100,H142-I142,IF(B142="HB Release",H142-I142,"")) -> 
B205: =IF(B204<100,MIN((A205-StartDate7)/(CompleteDate7-StartDate7)*100,100),IF(B204=100,IF(A205<>"","HB Release",""),"")) ->  | D205: =IF(B204<100,C205*Retention,IF(B205="HB Release",I204*-1,"")) ->  | F205: =IF(B204<100,MIN(CValue7,113.951*(0.005457^(0.963807^B205))*CValue7/100)+(MAX(BillingO1Ph7-BillingS1Ph7,0)*(1-MIN((A205-StartDate7)/(CompleteDate7-StartDate7),1))),IF(B205="HB Release",H204,"")) ->  | H205: =IF(G205>0,G205,F205) ->  | I205: =IF(B204<100,H205*Retention,IF(B205="HB Release",0,"")) ->  | K205: =IF(B204<100,(Tolerance)/4*(1-ABS(50-B205)/50)*CValue7/100,IF(B205="HB Release",0,"")) ->  | L205: =IF(B205<=100,M205-M204,"") ->  | M205: =IF(B205<=100,IF(J205-K205>0,J205-K205,0),IF(B205="HB Release",J205-K205,"")) ->  | N205: =IF(B205<=100,O205-O204,"") ->  | O205: =IF(B205<=100,J205+K205,IF(B205="HB Release",J205-K205,"")) -> 
C206: =IF(B205<100,H206-H205,IF(B206="HB Release",0,"")) ->  | E206: =IF(B205<100,C206-D206,IF(B206="HB Release",C206-D206,"")) ->  | J206: =IF(B205<100,H206-I206,IF(B206="HB Release",H206-I206,"")) -> 
B269: =IF(B268<100,MIN((A269-StartDate7)/(CompleteDate7-StartDate7)*100,100),IF(B268=100,IF(A269<>"","HB Release",""),"")) ->  | D269: =IF(B268<100,C269*Retention,IF(B269="HB Release",I268*-1,"")) ->  | F269: =IF(B268<100,MIN(CValue7,113.951*(0.005457^(0.963807^B269))*CValue7/100)+(MAX(BillingO1Ph7-BillingS1Ph7,0)*(1-MIN((A269-StartDate7)/(CompleteDate7-StartDate7),1))),IF(B269="HB Release",H268,"")) ->  | H269: =IF(G269>0,G269,F269) ->  | I269: =IF(B268<100,H269*Retention,IF(B269="HB Release",0,"")) ->  | K269: =IF(B268<100,(Tolerance)/4*(1-ABS(50-B269)/50)*CValue7/100,IF(B269="HB Release",0,"")) ->  | L269: =IF(B269<=100,M269-M268,"") ->  | M269: =IF(B269<=100,IF(J269-K269>0,J269-K269,0),IF(B269="HB Release",J269-K269,"")) ->  | N269: =IF(B269<=100,O269-O268,"") ->  | O269: =IF(B269<=100,J269+K269,IF(B269="HB Release",J269-K269,"")) -> 
C270: =IF(B269<100,H270-H269,IF(B270="HB Release",0,"")) ->  | E270: =IF(B269<100,C270-D270,IF(B270="HB Release",C270-D270,"")) ->  | J270: =IF(B269<100,H270-I270,IF(B270="HB Release",H270-I270,"")) -> 

Sheet Phase 8 (hidden)
A2: ='CF Setup'!C4&" - Phase 8" -> Fox Office Building 103 - Phase 8
A3: ='CF Setup'!C5 -> Prepared by ??
A4: ='CF Setup'!C6 -> Cash Flow Report
A8: ="Period: "&(TEXT(StartDate8,"mmmm d, yyyy")&" To "&TEXT(CompleteDate8,"mmmm d, yyyy")) -> Period: January 0, 1900 To January 0, 1900 | Q8: ="Value: "&TEXT(CValue8,"$0,0") -> Value: $00
A9: Phase | B9: 8
C10: This Period | F10: Cumulative | L10: Late Curve | N10: Early Curve | P10: Actual Billing | R10: Expected Payment
A11: Draw Date | B11: Duration% | C11: Gross Billing | D11: Retention | E11: Net Billing | F11: Calculated Gross | G11: Adjusted Gross | H11: Gross Billing | I11: Retention | J11: Net Billing | K11: SpreadFactor | L11: Monthly | M11: Cumulative | N11: Monthly | O11: Cumulative | P11: Monthly | Q11: Cumulative | R11: Date | S11: Monthly | T11: Cummalative
B12: =MIN((A12-StartDate8)/(CompleteDate8-StartDate8)*100,100) ->  | C12: =IF(B12<100,H12,"") ->  | D12: =C12*Retention ->  | E12: =C12-D12 ->  | F12: =MIN(CValue8,113.951*(0.005457^(0.963807^B12))*CValue8/100)+MAX(BillingO1Ph8-BillingS1Ph8,0) ->  | H12: =IF(G12>0,G12,F12) ->  | I12: =H12*Retention ->  | J12: =H12-I12 ->  | K12: =(Tolerance)/4*(1-ABS(50-B12)/50)*CValue8/100 ->  | L12: =M12 ->  | M12: =IF(J12-K12>0,J12-K12,0) ->  | N12: =O12 ->  | O12: =J12+K12 ->  | Q12: =IF(P12>0,P12,0) -> 0 | R12: =IF(ISBLANK(A12), , A12+ PaymentDate) -> 00:00:00 | S12: =IF(ISBLANK(P12), , P12) -> 0 | T12: =IF(Q12=0, 0, Q12) -> 0
B13: =IF(B12<100,MIN((A13-StartDate8)/(CompleteDate8-StartDate8)*100,100),IF(B12=100,IF(A13<>"","HB Release",""),"")) ->  | C13: =IF(B12<100,H13-H12,IF(B13="HB Release",0,"")) ->  | D13: =IF(B12<100,C13*Retention,IF(B13="HB Release",I12*-1,"")) ->  | E13: =IF(B12<100,C13-D13,IF(B13="HB Release",C13-D13,"")) ->  | F13: =IF(B12<100,MIN(CValue8,113.951*(0.005457^(0.963807^B13))*CValue8/100)+(MAX(BillingO1Ph8-BillingS1Ph8,0)*(1-MIN((A13-StartDate8)/(CompleteDate8-StartDate8),1))),IF(B13="HB Release",H12,"")) ->  | H13: =IF(G13>0,G13,F13) ->  | I13: =IF(B12<100,H13*Retention,IF(B13="HB Release",0,"")) ->  | J13: =IF(B12<100,H13-I13,IF(B13="HB Release",H13-I13,"")) ->  | K13: =IF(B12<100,(Tolerance)/4*(1-ABS(50-B13)/50)*CValue8/100,IF(B13="HB Release",0,"")) ->  | L13: =IF(B13<=100,M13-M12,"") ->  | M13: =IF(B13<=100,IF(J13-K13>0,J13-K13,0),IF(B13="HB Release",J13-K13,"")) ->  | N13: =IF(B13<=100,O13-O12,"") ->  | O13: =IF(B13<=100,J13+K13,IF(B13="HB Release",J13-K13,"")) ->  | Q13: =IF(P13>0,P13 + Q12,Q12) -> 0 | R13: 00:00:00 | S13: 0 | T13: 0
C14: =IF(B13<100,H14-H13,IF(B14="HB Release",0,"")) ->  | E14: =IF(B13<100,C14-D14,IF(B14="HB Release",C14-D14,"")) ->  | J14: =IF(B13<100,H14-I14,IF(B14="HB Release",H14-I14,"")) ->  | Q14: 0 | R14: 00:00:00 | S14: 0 | T14: 0
Q15: 0 | R15: 00:00:00 | S15: 0 | T15: 0
Q16: 0 | R16: 00:00:00 | S16: 0 | T16: 0
Q17: 0 | R17: 00:00:00 | S17: 0 | T17: 0
Q18: 0 | R18: 00:00:00 | S18: 0 | T18: 0
Q19: 0 | R19: 00:00:00 | S19: 0 | T19: 0
Q20: 0 | R20: 00:00:00 | S20: 0 | T20: 0
Q21: 0 | R21: 00:00:00 | S21: 0 | T21: 0
Q22: 0 | R22: 00:00:00 | S22: 0 | T22: 0
Q23: 0 | R23: 00:00:00 | S23: 0 | T23: 0
Q24: 0 | R24: 00:00:00 | S24: 0 | T24: 0
Q25: 0 | R25: 00:00:00 | S25: 0 | T25: 0
Q26: 0 | R26: 00:00:00 | S26: 0 | T26: 0
Q27: 0 | R27: 00:00:00 | S27: 0 | T27: 0
Q28: 0 | R28: 00:00:00 | S28: 0 | T28: 0
Q29: 0 | R29: 00:00:00 | S29: 0 | T29: 0
Q30: 0 | R30: 00:00:00 | S30: 0 | T30: 0
Q31: 0 | R31: 00:00:00 | S31: 0 | T31: 0
Q32: 0 | R32: 00:00:00 | S32: 0 | T32: 0
Q33: 0 | R33: 00:00:00 | S33: 0 | T33: 0
B77: =IF(B76<100,MIN((A77-StartDate8)/(CompleteDate8-StartDate8)*100,100),IF(B76=100,IF(A77<>"","HB Release",""),"")) ->  | D77: =IF(B76<100,C77*Retention,IF(B77="HB Release",I76*-1,"")) ->  | F77: =IF(B76<100,MIN(CValue8,113.951*(0.005457^(0.963807^B77))*CValue8/100)+(MAX(BillingO1Ph8-BillingS1Ph8,0)*(1-MIN((A77-StartDate8)/(CompleteDate8-StartDate8),1))),IF(B77="HB Release",H76,"")) ->  | H77: =IF(G77>0,G77,F77) ->  | I77: =IF(B76<100,H77*Retention,IF(B77="HB Release",0,"")) ->  | K77: =IF(B76<100,(Tolerance)/4*(1-ABS(50-B77)/50)*CValue8/100,IF(B77="HB Release",0,"")) ->  | L77: =IF(B77<=100,M77-M76,"") ->  | M77: =IF(B77<=100,IF(J77-K77>0,J77-K77,0),IF(B77="HB Release",J77-K77,"")) ->  | N77: =IF(B77<=100,O77-O76,"") ->  | O77: =IF(B77<=100,J77+K77,IF(B77="HB Release",J77-K77,"")) -> 
C78: =IF(B77<100,H78-H77,IF(B78="HB Release",0,"")) ->  | E78: =IF(B77<100,C78-D78,IF(B78="HB Release",C78-D78,"")) ->  | J78: =IF(B77<100,H78-I78,IF(B78="HB Release",H78-I78,"")) -> 
B141: =IF(B140<100,MIN((A141-StartDate8)/(CompleteDate8-StartDate8)*100,100),IF(B140=100,IF(A141<>"","HB Release",""),"")) ->  | D141: =IF(B140<100,C141*Retention,IF(B141="HB Release",I140*-1,"")) ->  | F141: =IF(B140<100,MIN(CValue8,113.951*(0.005457^(0.963807^B141))*CValue8/100)+(MAX(BillingO1Ph8-BillingS1Ph8,0)*(1-MIN((A141-StartDate8)/(CompleteDate8-StartDate8),1))),IF(B141="HB Release",H140,"")) ->  | H141: =IF(G141>0,G141,F141) ->  | I141: =IF(B140<100,H141*Retention,IF(B141="HB Release",0,"")) ->  | K141: =IF(B140<100,(Tolerance)/4*(1-ABS(50-B141)/50)*CValue8/100,IF(B141="HB Release",0,"")) ->  | L141: =IF(B141<=100,M141-M140,"") ->  | M141: =IF(B141<=100,IF(J141-K141>0,J141-K141,0),IF(B141="HB Release",J141-K141,"")) ->  | N141: =IF(B141<=100,O141-O140,"") ->  | O141: =IF(B141<=100,J141+K141,IF(B141="HB Release",J141-K141,"")) -> 
C142: =IF(B141<100,H142-H141,IF(B142="HB Release",0,"")) ->  | E142: =IF(B141<100,C142-D142,IF(B142="HB Release",C142-D142,"")) ->  | J142: =IF(B141<100,H142-I142,IF(B142="HB Release",H142-I142,"")) -> 
B205: =IF(B204<100,MIN((A205-StartDate8)/(CompleteDate8-StartDate8)*100,100),IF(B204=100,IF(A205<>"","HB Release",""),"")) ->  | D205: =IF(B204<100,C205*Retention,IF(B205="HB Release",I204*-1,"")) ->  | F205: =IF(B204<100,MIN(CValue8,113.951*(0.005457^(0.963807^B205))*CValue8/100)+(MAX(BillingO1Ph8-BillingS1Ph8,0)*(1-MIN((A205-StartDate8)/(CompleteDate8-StartDate8),1))),IF(B205="HB Release",H204,"")) ->  | H205: =IF(G205>0,G205,F205) ->  | I205: =IF(B204<100,H205*Retention,IF(B205="HB Release",0,"")) ->  | K205: =IF(B204<100,(Tolerance)/4*(1-ABS(50-B205)/50)*CValue8/100,IF(B205="HB Release",0,"")) ->  | L205: =IF(B205<=100,M205-M204,"") ->  | M205: =IF(B205<=100,IF(J205-K205>0,J205-K205,0),IF(B205="HB Release",J205-K205,"")) ->  | N205: =IF(B205<=100,O205-O204,"") ->  | O205: =IF(B205<=100,J205+K205,IF(B205="HB Release",J205-K205,"")) -> 
C206: =IF(B205<100,H206-H205,IF(B206="HB Release",0,"")) ->  | E206: =IF(B205<100,C206-D206,IF(B206="HB Release",C206-D206,"")) ->  | J206: =IF(B205<100,H206-I206,IF(B206="HB Release",H206-I206,"")) -> 
B269: =IF(B268<100,MIN((A269-StartDate8)/(CompleteDate8-StartDate8)*100,100),IF(B268=100,IF(A269<>"","HB Release",""),"")) ->  | D269: =IF(B268<100,C269*Retention,IF(B269="HB Release",I268*-1,"")) ->  | F269: =IF(B268<100,MIN(CValue8,113.951*(0.005457^(0.963807^B269))*CValue8/100)+(MAX(BillingO1Ph8-BillingS1Ph8,0)*(1-MIN((A269-StartDate8)/(CompleteDate8-StartDate8),1))),IF(B269="HB Release",H268,"")) ->  | H269: =IF(G269>0,G269,F269) ->  | I269: =IF(B268<100,H269*Retention,IF(B269="HB Release",0,"")) ->  | K269: =IF(B268<100,(Tolerance)/4*(1-ABS(50-B269)/50)*CValue8/100,IF(B269="HB Release",0,"")) ->  | L269: =IF(B269<=100,M269-M268,"") ->  | M269: =IF(B269<=100,IF(J269-K269>0,J269-K269,0),IF(B269="HB Release",J269-K269,"")) ->  | N269: =IF(B269<=100,O269-O268,"") ->  | O269: =IF(B269<=100,J269+K269,IF(B269="HB Release",J269-K269,"")) -> 
C270: =IF(B269<100,H270-H269,IF(B270="HB Release",0,"")) ->  | E270: =IF(B269<100,C270-D270,IF(B270="HB Release",C270-D270,"")) ->  | J270: =IF(B269<100,H270-I270,IF(B270="HB Release",H270-I270,"")) -> 

Sheet Phase 9 (hidden)
A2: ='CF Setup'!C4&" - Phase 9" -> Fox Office Building 103 - Phase 9
A3: ='CF Setup'!C5 -> Prepared by ??
A4: ='CF Setup'!C6 -> Cash Flow Report
A8: ="Period: "&(TEXT(StartDate9,"mmmm d, yyyy")&" To "&TEXT(CompleteDate9,"mmmm d, yyyy")) -> Period: January 0, 1900 To January 0, 1900 | Q8: ="Value: "&TEXT(CValue9,"$0,0") -> Value: $00
A9: Phase | B9: 9
C10: This Period | F10: Cumulative | L10: Late Curve | N10: Early Curve | P10: Actual Billing | R10: Expected Payment
A11: Draw Date | B11: Duration% | C11: Gross Billing | D11: Retention | E11: Net Billing | F11: Calculated Gross | G11: Adjusted Gross | H11: Gross Billing | I11: Retention | J11: Net Billing | K11: SpreadFactor | L11: Monthly | M11: Cumulative | N11: Monthly | O11: Cumulative | P11: Monthly | Q11: Cumulative | R11: Date | S11: Monthly | T11: Cummalative
B12: =MIN((A12-StartDate9)/(CompleteDate9-StartDate9)*100,100) ->  | C12: =IF(B12<100,H12,"") ->  | D12: =C12*Retention ->  | E12: =C12-D12 ->  | F12: =MIN(CValue9,113.951*(0.005457^(0.963807^B12))*CValue9/100)+MAX(BillingO1Ph9-BillingS1Ph9,0) ->  | H12: =IF(G12>0,G12,F12) ->  | I12: =H12*Retention ->  | J12: =H12-I12 ->  | K12: =(Tolerance)/4*(1-ABS(50-B12)/50)*CValue9/100 ->  | L12: =M12 ->  | M12: =IF(J12-K12>0,J12-K12,0) ->  | N12: =O12 ->  | O12: =J12+K12 ->  | Q12: =IF(P12>0,P12,0) -> 0 | R12: =IF(ISBLANK(A12), , A12+ PaymentDate) -> 00:00:00 | S12: =IF(ISBLANK(P12), , P12) -> 0 | T12: =IF(Q12=0, 0, Q12) -> 0
B13: =IF(B12<100,MIN((A13-StartDate9)/(CompleteDate9-StartDate9)*100,100),IF(B12=100,IF(A13<>"","HB Release",""),"")) ->  | C13: =IF(B12<100,H13-H12,IF(B13="HB Release",0,"")) ->  | D13: =IF(B12<100,C13*Retention,IF(B13="HB Release",I12*-1,"")) ->  | E13: =IF(B12<100,C13-D13,IF(B13="HB Release",C13-D13,"")) ->  | F13: =IF(B12<100,MIN(CValue9,113.951*(0.005457^(0.963807^B13))*CValue9/100)+(MAX(BillingO1Ph9-BillingS1Ph9,0)*(1-MIN((A13-StartDate9)/(CompleteDate9-StartDate9),1))),IF(B13="HB Release",H12,"")) ->  | H13: =IF(G13>0,G13,F13) ->  | I13: =IF(B12<100,H13*Retention,IF(B13="HB Release",0,"")) ->  | J13: =IF(B12<100,H13-I13,IF(B13="HB Release",H13-I13,"")) ->  | K13: =IF(B12<100,(Tolerance)/4*(1-ABS(50-B13)/50)*CValue9/100,IF(B13="HB Release",0,"")) ->  | L13: =IF(B13<=100,M13-M12,"") ->  | M13: =IF(B13<=100,IF(J13-K13>0,J13-K13,0),IF(B13="HB Release",J13-K13,"")) ->  | N13: =IF(B13<=100,O13-O12,"") ->  | O13: =IF(B13<=100,J13+K13,IF(B13="HB Release",J13-K13,"")) ->  | Q13: =IF(P13>0,P13 + Q12,Q12) -> 0 | R13: =IF(ISBLANK(A13), , A13+ PaymentDate) -> 00:00:00 | S13: =IF(ISBLANK(P13), , P13) -> 0 | T13: =IF(Q13=0, 0, Q13) -> 0
C14: =IF(B13<100,H14-H13,IF(B14="HB Release",0,"")) ->  | E14: =IF(B13<100,C14-D14,IF(B14="HB Release",C14-D14,"")) ->  | J14: =IF(B13<100,H14-I14,IF(B14="HB Release",H14-I14,"")) ->  | Q14: =IF(P14>0,P14 + Q13,Q13) -> 0 | R14: =IF(ISBLANK(A14), , A14+ PaymentDate) -> 00:00:00 | S14: =IF(ISBLANK(P14), , P14) -> 0 | T14: =IF(Q14=0, 0, Q14) -> 0
Q15: =IF(P15>0,P15 + Q14,Q14) -> 0 | R15: =IF(ISBLANK(A15), , A15+ PaymentDate) -> 00:00:00 | S15: =IF(ISBLANK(P15), , P15) -> 0 | T15: =IF(Q15=0, 0, Q15) -> 0
B77: =IF(B76<100,MIN((A77-StartDate9)/(CompleteDate9-StartDate9)*100,100),IF(B76=100,IF(A77<>"","HB Release",""),"")) ->  | D77: =IF(B76<100,C77*Retention,IF(B77="HB Release",I76*-1,"")) ->  | F77: =IF(B76<100,MIN(CValue9,113.951*(0.005457^(0.963807^B77))*CValue9/100)+(MAX(BillingO1Ph9-BillingS1Ph9,0)*(1-MIN((A77-StartDate9)/(CompleteDate9-StartDate9),1))),IF(B77="HB Release",H76,"")) ->  | H77: =IF(G77>0,G77,F77) ->  | I77: =IF(B76<100,H77*Retention,IF(B77="HB Release",0,"")) ->  | K77: =IF(B76<100,(Tolerance)/4*(1-ABS(50-B77)/50)*CValue9/100,IF(B77="HB Release",0,"")) ->  | L77: =IF(B77<=100,M77-M76,"") ->  | M77: =IF(B77<=100,IF(J77-K77>0,J77-K77,0),IF(B77="HB Release",J77-K77,"")) ->  | N77: =IF(B77<=100,O77-O76,"") ->  | O77: =IF(B77<=100,J77+K77,IF(B77="HB Release",J77-K77,"")) -> 
C78: =IF(B77<100,H78-H77,IF(B78="HB Release",0,"")) ->  | E78: =IF(B77<100,C78-D78,IF(B78="HB Release",C78-D78,"")) ->  | J78: =IF(B77<100,H78-I78,IF(B78="HB Release",H78-I78,"")) -> 
B141: =IF(B140<100,MIN((A141-StartDate9)/(CompleteDate9-StartDate9)*100,100),IF(B140=100,IF(A141<>"","HB Release",""),"")) ->  | D141: =IF(B140<100,C141*Retention,IF(B141="HB Release",I140*-1,"")) ->  | F141: =IF(B140<100,MIN(CValue9,113.951*(0.005457^(0.963807^B141))*CValue9/100)+(MAX(BillingO1Ph9-BillingS1Ph9,0)*(1-MIN((A141-StartDate9)/(CompleteDate9-StartDate9),1))),IF(B141="HB Release",H140,"")) ->  | H141: =IF(G141>0,G141,F141) ->  | I141: =IF(B140<100,H141*Retention,IF(B141="HB Release",0,"")) ->  | K141: =IF(B140<100,(Tolerance)/4*(1-ABS(50-B141)/50)*CValue9/100,IF(B141="HB Release",0,"")) ->  | L141: =IF(B141<=100,M141-M140,"") ->  | M141: =IF(B141<=100,IF(J141-K141>0,J141-K141,0),IF(B141="HB Release",J141-K141,"")) ->  | N141: =IF(B141<=100,O141-O140,"") ->  | O141: =IF(B141<=100,J141+K141,IF(B141="HB Release",J141-K141,"")) -> 
C142: =IF(B141<100,H142-H141,IF(B142="HB Release",0,"")) ->  | E142: =IF(B141<100,C142-D142,IF(B142="HB Release",C142-D142,"")) ->  | J142: =IF(B141<100,H142-I142,IF(B142="HB Release",H142-I142,"")) -> 
B205: =IF(B204<100,MIN((A205-StartDate9)/(CompleteDate9-StartDate9)*100,100),IF(B204=100,IF(A205<>"","HB Release",""),"")) ->  | D205: =IF(B204<100,C205*Retention,IF(B205="HB Release",I204*-1,"")) ->  | F205: =IF(B204<100,MIN(CValue9,113.951*(0.005457^(0.963807^B205))*CValue9/100)+(MAX(BillingO1Ph9-BillingS1Ph9,0)*(1-MIN((A205-StartDate9)/(CompleteDate9-StartDate9),1))),IF(B205="HB Release",H204,"")) ->  | H205: =IF(G205>0,G205,F205) ->  | I205: =IF(B204<100,H205*Retention,IF(B205="HB Release",0,"")) ->  | K205: =IF(B204<100,(Tolerance)/4*(1-ABS(50-B205)/50)*CValue9/100,IF(B205="HB Release",0,"")) ->  | L205: =IF(B205<=100,M205-M204,"") ->  | M205: =IF(B205<=100,IF(J205-K205>0,J205-K205,0),IF(B205="HB Release",J205-K205,"")) ->  | N205: =IF(B205<=100,O205-O204,"") ->  | O205: =IF(B205<=100,J205+K205,IF(B205="HB Release",J205-K205,"")) -> 
C206: =IF(B205<100,H206-H205,IF(B206="HB Release",0,"")) ->  | E206: =IF(B205<100,C206-D206,IF(B206="HB Release",C206-D206,"")) ->  | J206: =IF(B205<100,H206-I206,IF(B206="HB Release",H206-I206,"")) -> 
B269: =IF(B268<100,MIN((A269-StartDate9)/(CompleteDate9-StartDate9)*100,100),IF(B268=100,IF(A269<>"","HB Release",""),"")) ->  | D269: =IF(B268<100,C269*Retention,IF(B269="HB Release",I268*-1,"")) ->  | F269: =IF(B268<100,MIN(CValue9,113.951*(0.005457^(0.963807^B269))*CValue9/100)+(MAX(BillingO1Ph9-BillingS1Ph9,0)*(1-MIN((A269-StartDate9)/(CompleteDate9-StartDate9),1))),IF(B269="HB Release",H268,"")) ->  | H269: =IF(G269>0,G269,F269) ->  | I269: =IF(B268<100,H269*Retention,IF(B269="HB Release",0,"")) ->  | K269: =IF(B268<100,(Tolerance)/4*(1-ABS(50-B269)/50)*CValue9/100,IF(B269="HB Release",0,"")) ->  | L269: =IF(B269<=100,M269-M268,"") ->  | M269: =IF(B269<=100,IF(J269-K269>0,J269-K269,0),IF(B269="HB Release",J269-K269,"")) ->  | N269: =IF(B269<=100,O269-O268,"") ->  | O269: =IF(B269<=100,J269+K269,IF(B269="HB Release",J269-K269,"")) -> 
C270: =IF(B269<100,H270-H269,IF(B270="HB Release",0,"")) ->  | E270: =IF(B269<100,C270-D270,IF(B270="HB Release",C270-D270,"")) ->  | J270: =IF(B269<100,H270-I270,IF(B270="HB Release",H270-I270,"")) -> 

Sheet Phase 10 (hidden)
A2: ='CF Setup'!C4&" - Phase 10" -> Fox Office Building 103 - Phase 10
A3: ='CF Setup'!C5 -> Prepared by ??
A4: ='CF Setup'!C6 -> Cash Flow Report
A8: ="Period: "&(TEXT(StartDate10,"mmmm d, yyyy")&" To "&TEXT(CompleteDate10,"mmmm d, yyyy")) -> Period: January 0, 1900 To January 0, 1900 | Q8: ="Value: "&TEXT(CValue10,"$0,0") -> Value: $00
A9: Phase | B9: 10
C10: This Period | F10: Cumulative | L10: Late Curve | N10: Early Curve | P10: Actual Billing | R10: Expected Payment
A11: Draw Date | B11: Duration% | C11: Gross Billing | D11: Retention | E11: Net Billing | F11: Calculated Gross | G11: Adjusted Gross | H11: Gross Billing | I11: Retention | J11: Net Billing | K11: SpreadFactor | L11: Monthly | M11: Cumulative | N11: Monthly | O11: Cumulative | P11: Monthly | Q11: Cumulative | R11: Date | S11: Monthly | T11: Cummalative
B12: =MIN((A12-StartDate10)/(CompleteDate10-StartDate10)*100,100) ->  | C12: =IF(B12<100,H12,"") ->  | D12: =C12*Retention ->  | E12: =C12-D12 ->  | F12: =MIN(CValue10,113.951*(0.005457^(0.963807^B12))*CValue10/100)+MAX(BillingO1Ph10-BillingS1Ph10,0) ->  | H12: =IF(G12>0,G12,F12) ->  | I12: =H12*Retention ->  | J12: =H12-I12 ->  | K12: =(Tolerance)/4*(1-ABS(50-B12)/50)*CValue10/100 ->  | L12: =M12 ->  | M12: =IF(J12-K12>0,J12-K12,0) ->  | N12: =O12 ->  | O12: =J12+K12 ->  | Q12: =IF(P12>0,P12,0) -> 0 | R12: =IF(ISBLANK(A12), , A12+ PaymentDate) -> 00:00:00 | S12: =IF(ISBLANK(P12), , P12) -> 0 | T12: =IF(Q12=0, 0, Q12) -> 0
B13: =IF(B12<100,MIN((A13-StartDate10)/(CompleteDate10-StartDate10)*100,100),IF(B12=100,IF(A13<>"","HB Release",""),"")) ->  | C13: =IF(B12<100,H13-H12,IF(B13="HB Release",0,"")) ->  | D13: =IF(B12<100,C13*Retention,IF(B13="HB Release",I12*-1,"")) ->  | E13: =IF(B12<100,C13-D13,IF(B13="HB Release",C13-D13,"")) ->  | F13: =IF(B12<100,MIN(CValue10,113.951*(0.005457^(0.963807^B13))*CValue10/100)+(MAX(BillingO1Ph10-BillingS1Ph10,0)*(1-MIN((A13-StartDate10)/(CompleteDate10-StartDate10),1))),IF(B13="HB Release",H12,"")) ->  | H13: =IF(G13>0,G13,F13) ->  | I13: =IF(B12<100,H13*Retention,IF(B13="HB Release",0,"")) ->  | J13: =IF(B12<100,H13-I13,IF(B13="HB Release",H13-I13,"")) ->  | K13: =IF(B12<100,(Tolerance)/4*(1-ABS(50-B13)/50)*CValue10/100,IF(B13="HB Release",0,"")) ->  | L13: =IF(B13<=100,M13-M12,"") ->  | M13: =IF(B13<=100,IF(J13-K13>0,J13-K13,0),IF(B13="HB Release",J13-K13,"")) ->  | N13: =IF(B13<=100,O13-O12,"") ->  | O13: =IF(B13<=100,J13+K13,IF(B13="HB Release",J13-K13,"")) ->  | Q13: =IF(P13>0,P13 + Q12,Q12) -> 0 | R13: 00:00:00 | S13: 0 | T13: 0
C14: =IF(B13<100,H14-H13,IF(B14="HB Release",0,"")) ->  | E14: =IF(B13<100,C14-D14,IF(B14="HB Release",C14-D14,"")) ->  | J14: =IF(B13<100,H14-I14,IF(B14="HB Release",H14-I14,"")) ->  | Q14: 0 | R14: 00:00:00 | S14: 0 | T14: 0
Q15: 0 | R15: 00:00:00 | S15: 0 | T15: 0
Q16: 0 | R16: 00:00:00 | S16: 0 | T16: 0
Q17: 0 | R17: 00:00:00 | S17: 0 | T17: 0
Q18: 0 | R18: 00:00:00 | S18: 0 | T18: 0
Q19: 0 | R19: 00:00:00 | S19: 0 | T19: 0
Q20: 0 | R20: 00:00:00 | S20: 0 | T20: 0
B77: =IF(B76<100,MIN((A77-StartDate10)/(CompleteDate10-StartDate10)*100,100),IF(B76=100,IF(A77<>"","HB Release",""),"")) ->  | D77: =IF(B76<100,C77*Retention,IF(B77="HB Release",I76*-1,"")) ->  | F77: =IF(B76<100,MIN(CValue10,113.951*(0.005457^(0.963807^B77))*CValue10/100)+(MAX(BillingO1Ph10-BillingS1Ph10,0)*(1-MIN((A77-StartDate10)/(CompleteDate10-StartDate10),1))),IF(B77="HB Release",H76,"")) ->  | H77: =IF(G77>0,G77,F77) ->  | I77: =IF(B76<100,H77*Retention,IF(B77="HB Release",0,"")) ->  | K77: =IF(B76<100,(Tolerance)/4*(1-ABS(50-B77)/50)*CValue10/100,IF(B77="HB Release",0,"")) ->  | L77: =IF(B77<=100,M77-M76,"") ->  | M77: =IF(B77<=100,IF(J77-K77>0,J77-K77,0),IF(B77="HB Release",J77-K77,"")) ->  | N77: =IF(B77<=100,O77-O76,"") ->  | O77: =IF(B77<=100,J77+K77,IF(B77="HB Release",J77-K77,"")) -> 
C78: =IF(B77<100,H78-H77,IF(B78="HB Release",0,"")) ->  | E78: =IF(B77<100,C78-D78,IF(B78="HB Release",C78-D78,"")) ->  | J78: =IF(B77<100,H78-I78,IF(B78="HB Release",H78-I78,"")) -> 
B141: =IF(B140<100,MIN((A141-StartDate10)/(CompleteDate10-StartDate10)*100,100),IF(B140=100,IF(A141<>"","HB Release",""),"")) ->  | D141: =IF(B140<100,C141*Retention,IF(B141="HB Release",I140*-1,"")) ->  | F141: =IF(B140<100,MIN(CValue10,113.951*(0.005457^(0.963807^B141))*CValue10/100)+(MAX(BillingO1Ph10-BillingS1Ph10,0)*(1-MIN((A141-StartDate10)/(CompleteDate10-StartDate10),1))),IF(B141="HB Release",H140,"")) ->  | H141: =IF(G141>0,G141,F141) ->  | I141: =IF(B140<100,H141*Retention,IF(B141="HB Release",0,"")) ->  | K141: =IF(B140<100,(Tolerance)/4*(1-ABS(50-B141)/50)*CValue10/100,IF(B141="HB Release",0,"")) ->  | L141: =IF(B141<=100,M141-M140,"") ->  | M141: =IF(B141<=100,IF(J141-K141>0,J141-K141,0),IF(B141="HB Release",J141-K141,"")) ->  | N141: =IF(B141<=100,O141-O140,"") ->  | O141: =IF(B141<=100,J141+K141,IF(B141="HB Release",J141-K141,"")) -> 
C142: =IF(B141<100,H142-H141,IF(B142="HB Release",0,"")) ->  | E142: =IF(B141<100,C142-D142,IF(B142="HB Release",C142-D142,"")) ->  | J142: =IF(B141<100,H142-I142,IF(B142="HB Release",H142-I142,"")) -> 
B205: =IF(B204<100,MIN((A205-StartDate10)/(CompleteDate10-StartDate10)*100,100),IF(B204=100,IF(A205<>"","HB Release",""),"")) ->  | D205: =IF(B204<100,C205*Retention,IF(B205="HB Release",I204*-1,"")) ->  | F205: =IF(B204<100,MIN(CValue10,113.951*(0.005457^(0.963807^B205))*CValue10/100)+(MAX(BillingO1Ph10-BillingS1Ph10,0)*(1-MIN((A205-StartDate10)/(CompleteDate10-StartDate10),1))),IF(B205="HB Release",H204,"")) ->  | H205: =IF(G205>0,G205,F205) ->  | I205: =IF(B204<100,H205*Retention,IF(B205="HB Release",0,"")) ->  | K205: =IF(B204<100,(Tolerance)/4*(1-ABS(50-B205)/50)*CValue10/100,IF(B205="HB Release",0,"")) ->  | L205: =IF(B205<=100,M205-M204,"") ->  | M205: =IF(B205<=100,IF(J205-K205>0,J205-K205,0),IF(B205="HB Release",J205-K205,"")) ->  | N205: =IF(B205<=100,O205-O204,"") ->  | O205: =IF(B205<=100,J205+K205,IF(B205="HB Release",J205-K205,"")) -> 
C206: =IF(B205<100,H206-H205,IF(B206="HB Release",0,"")) ->  | E206: =IF(B205<100,C206-D206,IF(B206="HB Release",C206-D206,"")) ->  | J206: =IF(B205<100,H206-I206,IF(B206="HB Release",H206-I206,"")) -> 
B269: =IF(B268<100,MIN((A269-StartDate10)/(CompleteDate10-StartDate10)*100,100),IF(B268=100,IF(A269<>"","HB Release",""),"")) ->  | D269: =IF(B268<100,C269*Retention,IF(B269="HB Release",I268*-1,"")) ->  | F269: =IF(B268<100,MIN(CValue10,113.951*(0.005457^(0.963807^B269))*CValue10/100)+(MAX(BillingO1Ph10-BillingS1Ph10,0)*(1-MIN((A269-StartDate10)/(CompleteDate10-StartDate10),1))),IF(B269="HB Release",H268,"")) ->  | H269: =IF(G269>0,G269,F269) ->  | I269: =IF(B268<100,H269*Retention,IF(B269="HB Release",0,"")) ->  | K269: =IF(B268<100,(Tolerance)/4*(1-ABS(50-B269)/50)*CValue10/100,IF(B269="HB Release",0,"")) ->  | L269: =IF(B269<=100,M269-M268,"") ->  | M269: =IF(B269<=100,IF(J269-K269>0,J269-K269,0),IF(B269="HB Release",J269-K269,"")) ->  | N269: =IF(B269<=100,O269-O268,"") ->  | O269: =IF(B269<=100,J269+K269,IF(B269="HB Release",J269-K269,"")) -> 
C270: =IF(B269<100,H270-H269,IF(B270="HB Release",0,"")) ->  | E270: =IF(B269<100,C270-D270,IF(B270="HB Release",C270-D270,"")) ->  | J270: =IF(B269<100,H270-I270,IF(B270="HB Release",H270-I270,"")) -> 
